Workbook

Sheet IPEDs_State_2004_2023
A1: Profession | B1: Year | C1: FIPS | D1: State | E1: Count Total | F1: Count Male | G1: Count Female | H1: Count White | I1: Count Black | J1: Count Asian | K1: Count Hispanic | L1: Count Other Race | M1: Percent Male | N1: Proportion Male | O1: Percent Female | P1: Proportion Female | Q1: Percent White | R1: Proportion White | S1: Percent Black | T1: Proportion Black | U1: Percent Asian | V1: Proportion Asian | W1: Percent Hispanic | X1: Proportion Hispanic | Y1: Percent Other Race | Z1: Proportion Other Race | AA1: State Population | AB1: Rate Per 100,000 Population | AC1: State Code | AD1: CIP | AE1: Degree | AF1: Award Level Code
A2: Audiologists | B2: 2008 | C2: 1 | D2: Alabama | E2: 7 | F2: 0 | G2: 7 | L2: 0 | M2: 0.00 | N2: =M2/100 -> 0.000 | O2: 100 | P2: =O2/100 -> 1.000 | R2: =Q2/100 -> 0.000 | T2: =S2/100 -> 0.000 | V2: =U2/100 -> 0.000 | X2: =W2/100 -> 0.000 | Y2: 0 | Z2: =Y2/100 -> 0.000 | AA2: 4718206 | AB2: 0.15 | AC2: AL | AD2: 51.0202 | AE2: Professional degree (doctoral level) | AF2: 18, 19
A3: Audiologists | B3: 2008 | C3: 6 | D3: California | E3: 14 | F3: 1 | G3: 13 | L3: 2 | M3: 7.14 | N3: =M3/100 -> 0.071 | O3: 92.86 | P3: =O3/100 -> 0.929 | R3: =Q3/100 -> 0.000 | T3: =S3/100 -> 0.000 | V3: =U3/100 -> 0.000 | X3: =W3/100 -> 0.000 | Y3: 14.29 | Z3: =Y3/100 -> 0.143 | AA3: 36604337 | AB3: 0.04 | AC3: CA | AD3: 51.0202 | AE3: Professional degree (doctoral level) | AF3: 18, 19
A4: Audiologists | B4: 2008 | C4: 8 | D4: Colorado | E4: 15 | F4: 1 | G4: 14 | L4: 1 | M4: 6.67 | N4: 0.067 | O4: 93.33 | P4: 0.933 | R4: 0.000 | T4: 0.000 | V4: 0.000 | X4: 0.000 | Y4: 6.67 | Z4: 0.067 | AA4: 4889730 | AB4: 0.31 | AC4: CO | AD4: 51.0202 | AE4: Professional degree (doctoral level) | AF4: 18, 19
A5: Audiologists | B5: 2008 | C5: 9 | D5: Connecticut | E5: 5 | F5: 1 | G5: 4 | L5: 0 | M5: 20.00 | N5: 0.200 | O5: 80 | P5: 0.800 | R5: 0.000 | T5: 0.000 | V5: 0.000 | X5: 0.000 | Y5: 0 | Z5: 0.000 | AA5: 3545579 | AB5: 0.14 | AC5: CT | AD5: 51.0202 | AE5: Professional degree (doctoral level) | AF5: 18, 19
A6: Audiologists | B6: 2008 | C6: 11 | D6: District of Columbia | E6: 7 | F6: 2 | G6: 5 | L6: 1 | M6: 28.57 | N6: 0.286 | O6: 71.43 | P6: 0.714 | R6: 0.000 | T6: 0.000 | V6: 0.000 | X6: 0.000 | Y6: 14.29 | Z6: 0.143 | AA6: 580236 | AB6: 1.21 | AC6: DC | AD6: 51.0202 | AE6: Professional degree (doctoral level) | AF6: 18, 19
A7: Audiologists | B7: 2008 | C7: 12 | D7: Florida | E7: 162 | F7: 26 | G7: 136 | L7: 14 | M7: 16.05 | N7: 0.161 | O7: 83.95 | P7: 0.840 | R7: 0.000 | T7: 0.000 | V7: 0.000 | X7: 0.000 | Y7: 8.64 | Z7: 0.086 | AA7: 18527305 | AB7: 0.87 | AC7: FL | AD7: 51.0202 | AE7: Professional degree (doctoral level) | AF7: 18, 19
A8: Audiologists | B8: 2008 | C8: 16 | D8: Idaho | E8: 1 | F8: 0 | G8: 1 | L8: 0 | M8: 0.00 | N8: 0.000 | O8: 100 | P8: 1.000 | R8: 0.000 | T8: 0.000 | V8: 0.000 | X8: 0.000 | Y8: 0 | Z8: 0.000 | AA8: 1534320 | AB8: 0.07 | AC8: ID | AD8: 51.0202 | AE8: Professional degree (doctoral level) | AF8: 18, 19
A9: Audiologists | B9: 2008 | C9: 17 | D9: Illinois | E9: 16 | F9: 1 | G9: 15 | L9: 0 | M9: 6.25 | N9: 0.063 | O9: 93.75 | P9: 0.938 | R9: 0.000 | T9: 0.000 | V9: 0.000 | X9: 0.000 | Y9: 0 | Z9: 0.000 | AA9: 12747038 | AB9: 0.13 | AC9: IL | AD9: 51.0202 | AE9: Professional degree (doctoral level) | AF9: 18, 19
A10: Audiologists | B10: 2008 | C10: 20 | D10: Kansas | E10: 2 | F10: 1 | G10: 1 | L10: 1 | M10: 50.00 | N10: 0.500 | O10: 50 | P10: 0.500 | R10: 0.000 | T10: 0.000 | V10: 0.000 | X10: 0.000 | Y10: 50 | Z10: 0.500 | AA10: 2808076 | AB10: 0.07 | AC10: KS | AD10: 51.0202 | AE10: Professional degree (doctoral level) | AF10: 18, 19
A11: Audiologists | B11: 2008 | C11: 21 | D11: Kentucky | E11: 10 | F11: 1 | G11: 9 | L11: 0 | M11: 10.00 | N11: 0.100 | O11: 90 | P11: 0.900 | R11: 0.000 | T11: 0.000 | V11: 0.000 | X11: 0.000 | Y11: 0 | Z11: 0.000 | AA11: 4289878 | AB11: 0.23 | AC11: KY | AD11: 51.0202 | AE11: Professional degree (doctoral level) | AF11: 18, 19
A12: Audiologists | B12: 2008 | C12: 22 | D12: Louisiana | E12: 10 | F12: 1 | G12: 9 | L12: 0 | M12: 10.00 | N12: 0.100 | O12: 90 | P12: 0.900 | R12: 0.000 | T12: 0.000 | V12: 0.000 | X12: 0.000 | Y12: 0 | Z12: 0.000 | AA12: 4435586 | AB12: 0.23 | AC12: LA | AD12: 51.0202 | AE12: Professional degree (doctoral level) | AF12: 18, 19
A13: Audiologists | B13: 2008 | C13: 24 | D13: Maryland | E13: 8 | F13: 0 | G13: 8 | L13: 0 | M13: 0.00 | N13: 0.000 | O13: 100 | P13: 1.000 | R13: 0.000 | T13: 0.000 | V13: 0.000 | X13: 0.000 | Y13: 0 | Z13: 0.000 | AA13: 5684965 | AB13: 0.14 | AC13: MD | AD13: 51.0202 | AE13: Professional degree (doctoral level) | AF13: 18, 19
A14: Audiologists | B14: 2008 | C14: 25 | D14: Massachusetts | E14: 5 | F14: 1 | G14: 4 | L14: 1 | M14: 20.00 | N14: 0.200 | O14: 80 | P14: 0.800 | R14: 0.000 | T14: 0.000 | V14: 0.000 | X14: 0.000 | Y14: 20 | Z14: 0.200 | AA14: 6468967 | AB14: 0.08 | AC14: MA | AD14: 51.0202 | AE14: Professional degree (doctoral level) | AF14: 18, 19
A15: Audiologists | B15: 2008 | C15: 26 | D15: Michigan | E15: 52 | F15: 8 | G15: 44 | L15: 5 | M15: 15.38 | N15: 0.154 | O15: 84.62 | P15: 0.846 | R15: 0.000 | T15: 0.000 | V15: 0.000 | X15: 0.000 | Y15: 9.62 | Z15: 0.096 | AA15: 9946889 | AB15: 0.52 | AC15: MI | AD15: 51.0202 | AE15: Professional degree (doctoral level) | AF15: 18, 19
A16: Audiologists | B16: 2008 | C16: 27 | D16: Minnesota | E16: 4 | F16: 1 | G16: 3 | L16: 0 | M16: 25.00 | N16: 0.250 | O16: 75 | P16: 0.750 | R16: 0.000 | T16: 0.000 | V16: 0.000 | X16: 0.000 | Y16: 0 | Z16: 0.000 | AA16: 5247018 | AB16: 0.08 | AC16: MN | AD16: 51.0202 | AE16: Professional degree (doctoral level) | AF16: 18, 19
A17: Audiologists | B17: 2008 | C17: 29 | D17: Missouri | E17: 340 | F17: 55 | G17: 285 | L17: 4 | M17: 16.18 | N17: 0.162 | O17: 83.82 | P17: 0.838 | R17: 0.000 | T17: 0.000 | V17: 0.000 | X17: 0.000 | Y17: 1.18 | Z17: 0.012 | AA17: 5923916 | AB17: 5.74 | AC17: MO | AD17: 51.0202 | AE17: Professional degree (doctoral level) | AF17: 18, 19
A18: Audiologists | B18: 2008 | C18: 31 | D18: Nebraska | E18: 4 | F18: 0 | G18: 4 | L18: 0 | M18: 0.00 | N18: 0.000 | O18: 100 | P18: 1.000 | R18: 0.000 | T18: 0.000 | V18: 0.000 | X18: 0.000 | Y18: 0 | Z18: 0.000 | AA18: 1796378 | AB18: 0.22 | AC18: NE | AD18: 51.0202 | AE18: Professional degree (doctoral level) | AF18: 18, 19
A19: Audiologists | B19: 2008 | C19: 34 | D19: New Jersey | E19: 4 | F19: 2 | G19: 2 | L19: 1 | M19: 50.00 | N19: 0.500 | O19: 50 | P19: 0.500 | R19: 0.000 | T19: 0.000 | V19: 0.000 | X19: 0.000 | Y19: 25 | Z19: 0.250 | AA19: 8711090 | AB19: 0.05 | AC19: NJ | AD19: 51.0202 | AE19: Professional degree (doctoral level) | AF19: 18, 19
A20: Audiologists | B20: 2008 | C20: 36 | D20: New York | E20: 5 | F20: 1 | G20: 4 | L20: 1 | M20: 20.00 | N20: 0.200 | O20: 80 | P20: 0.800 | R20: 0.000 | T20: 0.000 | V20: 0.000 | X20: 0.000 | Y20: 20 | Z20: 0.200 | AA20: 19212436 | AB20: 0.03 | AC20: NY | AD20: 51.0202 | AE20: Professional degree (doctoral level) | AF20: 18, 19
A21: Audiologists | B21: 2008 | C21: 37 | D21: North Carolina | E21: 5 | F21: 1 | G21: 4 | L21: 0 | M21: 20.00 | N21: 0.200 | O21: 80 | P21: 0.800 | R21: 0.000 | T21: 0.000 | V21: 0.000 | X21: 0.000 | Y21: 0 | Z21: 0.000 | AA21: 9309449 | AB21: 0.05 | AC21: NC | AD21: 51.0202 | AE21: Professional degree (doctoral level) | AF21: 18, 19
A22: Audiologists | B22: 2008 | C22: 39 | D22: Ohio | E22: 18 | F22: 3 | G22: 15 | L22: 3 | M22: 16.67 | N22: 0.167 | O22: 83.33 | P22: 0.833 | R22: 0.000 | T22: 0.000 | V22: 0.000 | X22: 0.000 | Y22: 16.67 | Z22: 0.167 | AA22: 11515391 | AB22: 0.16 | AC22: OH | AD22: 51.0202 | AE22: Professional degree (doctoral level) | AF22: 18, 19
A23: Audiologists | B23: 2008 | C23: 40 | D23: Oklahoma | E23: 10 | F23: 2 | G23: 8 | L23: 0 | M23: 20.00 | N23: 0.200 | O23: 80 | P23: 0.800 | R23: 0.000 | T23: 0.000 | V23: 0.000 | X23: 0.000 | Y23: 0 | Z23: 0.000 | AA23: 3668976 | AB23: 0.27 | AC23: OK | AD23: 51.0202 | AE23: Professional degree (doctoral level) | AF23: 18, 19
A24: Audiologists | B24: 2008 | C24: 42 | D24: Pennsylvania | E24: 327 | F24: 34 | G24: 293 | L24: 14 | M24: 10.40 | N24: 0.104 | O24: 89.6 | P24: 0.896 | R24: 0.000 | T24: 0.000 | V24: 0.000 | X24: 0.000 | Y24: 4.28 | Z24: 0.043 | AA24: 12612285 | AB24: 2.59 | AC24: PA | AD24: 51.0202 | AE24: Professional degree (doctoral level) | AF24: 18, 19
A25: Audiologists | B25: 2008 | C25: 44 | D25: Rhode Island | E25: 4 | F25: 0 | G25: 4 | L25: 0 | M25: 0.00 | N25: 0.000 | O25: 100 | P25: 1.000 | R25: 0.000 | T25: 0.000 | V25: 0.000 | X25: 0.000 | Y25: 0 | Z25: 0.000 | AA25: 1055003 | AB25: 0.38 | AC25: RI | AD25: 51.0202 | AE25: Professional degree (doctoral level) | AF25: 18, 19
A26: Audiologists | B26: 2008 | C26: 46 | D26: South Dakota | E26: 1 | F26: 0 | G26: 1 | L26: 0 | M26: 0.00 | N26: 0.000 | O26: 100 | P26: 1.000 | R26: 0.000 | T26: 0.000 | V26: 0.000 | X26: 0.000 | Y26: 0 | Z26: 0.000 | AA26: 799124 | AB26: 0.13 | AC26: SD | AD26: 51.0202 | AE26: Professional degree (doctoral level) | AF26: 18, 19
A27: Audiologists | B27: 2008 | C27: 47 | D27: Tennessee | E27: 20 | F27: 3 | G27: 17 | L27: 1 | M27: 15.00 | N27: 0.150 | O27: 85 | P27: 0.850 | R27: 0.000 | T27: 0.000 | V27: 0.000 | X27: 0.000 | Y27: 5 | Z27: 0.050 | AA27: 6247411 | AB27: 0.32 | AC27: TN | AD27: 51.0202 | AE27: Professional degree (doctoral level) | AF27: 18, 19
A28: Audiologists | B28: 2008 | C28: 48 | D28: Texas | E28: 29 | F28: 2 | G28: 27 | L28: 0 | M28: 6.90 | N28: 0.069 | O28: 93.1 | P28: 0.931 | R28: 0.000 | T28: 0.000 | V28: 0.000 | X28: 0.000 | Y28: 0 | Z28: 0.000 | AA28: 24309039 | AB28: 0.12 | AC28: TX | AD28: 51.0202 | AE28: Professional degree (doctoral level) | AF28: 18, 19
A29: Audiologists | B29: 2008 | C29: 49 | D29: Utah | E29: 18 | F29: 7 | G29: 11 | L29: 2 | M29: 38.89 | N29: 0.389 | O29: 61.11 | P29: 0.611 | R29: 0.000 | T29: 0.000 | V29: 0.000 | X29: 0.000 | Y29: 11.11 | Z29: 0.111 | AA29: 2663029 | AB29: 0.68 | AC29: UT | AD29: 51.0202 | AE29: Professional degree (doctoral level) | AF29: 18, 19
A30: Audiologists | B30: 2008 | C30: 51 | D30: Virginia | E30: 3 | F30: 0 | G30: 3 | L30: 0 | M30: 0.00 | N30: 0.000 | O30: 100 | P30: 1.000 | R30: 0.000 | T30: 0.000 | V30: 0.000 | X30: 0.000 | Y30: 0 | Z30: 0.000 | AA30: 7833496 | AB30: 0.04 | AC30: VA | AD30: 51.0202 | AE30: Professional degree (doctoral level) | AF30: 18, 19
A31: Audiologists | B31: 2008 | C31: 53 | D31: Washington | E31: 9 | F31: 1 | G31: 8 | L31: 0 | M31: 11.11 | N31: 0.111 | O31: 88.89 | P31: 0.889 | R31: 0.000 | T31: 0.000 | V31: 0.000 | X31: 0.000 | Y31: 0 | Z31: 0.000 | AA31: 6562231 | AB31: 0.14 | AC31: WA | AD31: 51.0202 | AE31: Professional degree (doctoral level) | AF31: 18, 19
A32: Audiologists | B32: 2008 | C32: 54 | D32: West Virginia | E32: 8 | F32: 0 | G32: 8 | L32: 0 | M32: 0.00 | N32: 0.000 | O32: 100 | P32: 1.000 | R32: 0.000 | T32: 0.000 | V32: 0.000 | X32: 0.000 | Y32: 0 | Z32: 0.000 | AA32: 1840310 | AB32: 0.43 | AC32: WV | AD32: 51.0202 | AE32: Professional degree (doctoral level) | AF32: 18, 19
A33: Audiologists | B33: 2008 | C33: 55 | D33: Wisconsin | E33: 11 | F33: 0 | G33: 11 | L33: 0 | M33: 0.00 | N33: 0.000 | O33: 100 | P33: 1.000 | R33: 0.000 | T33: 0.000 | V33: 0.000 | X33: 0.000 | Y33: 0 | Z33: 0.000 | AA33: 5640996 | AB33: 0.2 | AC33: WI | AD33: 51.0202 | AE33: Professional degree (doctoral level) | AF33: 18, 19
A34: Audiologists | B34: 2008 | C34: 72 | D34: Puerto Rico | E34: 0 | F34: 0 | G34: 0 | H34: 0 | I34: 0 | J34: 0 | K34: 0 | L34: 0 | N34: 0.000 | P34: 0.000 | R34: 0.000 | T34: 0.000 | V34: 0.000 | X34: 0.000 | Z34: 0.000 | AA34: 3760866 | AB34: 0 | AC34: PR | AD34: 51.0202 | AE34: Professional degree (doctoral level) | AF34: 18, 19
A35: Audiologists | B35: 2009 | C35: 5 | D35: Arkansas | E35: 7 | F35: 1 | G35: 6 | L35: 0 | M35: 14.29 | N35: 0.143 | O35: 85.71 | P35: 0.857 | R35: 0.000 | T35: 0.000 | V35: 0.000 | X35: 0.000 | Y35: 0 | Z35: 0.000 | AA35: 2896843 | AB35: 0.24 | AC35: AR | AD35: 51.0202 | AE35: Professional degree (doctoral level) | AF35: 18, 19
A36: Audiologists | B36: 2009 | C36: 6 | D36: California | E36: 22 | F36: 4 | G36: 18 | L36: 4 | M36: 18.18 | N36: 0.182 | O36: 81.82 | P36: 0.818 | R36: 0.000 | T36: 0.000 | V36: 0.000 | X36: 0.000 | Y36: 18.18 | Z36: 0.182 | AA36: 36961229 | AB36: 0.06 | AC36: CA | AD36: 51.0202 | AE36: Professional degree (doctoral level) | AF36: 18, 19
A37: Audiologists | B37: 2009 | C37: 8 | D37: Colorado | E37: 6 | F37: 2 | G37: 4 | L37: 1 | M37: 33.33 | N37: 0.333 | O37: 66.67 | P37: 0.667 | R37: 0.000 | T37: 0.000 | V37: 0.000 | X37: 0.000 | Y37: 16.67 | Z37: 0.167 | AA37: 4972195 | AB37: 0.12 | AC37: CO | AD37: 51.0202 | AE37: Professional degree (doctoral level) | AF37: 18, 19
A38: Audiologists | B38: 2009 | C38: 9 | D38: Connecticut | E38: 5 | F38: 0 | G38: 5 | L38: 0 | M38: 0.00 | N38: 0.000 | O38: 100 | P38: 1.000 | R38: 0.000 | T38: 0.000 | V38: 0.000 | X38: 0.000 | Y38: 0 | Z38: 0.000 | AA38: 3561807 | AB38: 0.14 | AC38: CT | AD38: 51.0202 | AE38: Professional degree (doctoral level) | AF38: 18, 19
A39: Audiologists | B39: 2009 | C39: 11 | D39: District of Columbia | E39: 11 | F39: 1 | G39: 10 | L39: 1 | M39: 9.09 | N39: 0.091 | O39: 90.91 | P39: 0.909 | R39: 0.000 | T39: 0.000 | V39: 0.000 | X39: 0.000 | Y39: 9.09 | Z39: 0.091 | AA39: 592228 | AB39: 1.86 | AC39: DC | AD39: 51.0202 | AE39: Professional degree (doctoral level) | AF39: 18, 19
A40: Audiologists | B40: 2009 | C40: 12 | D40: Florida | E40: 124 | F40: 19 | G40: 105 | L40: 14 | M40: 15.32 | N40: 0.153 | O40: 84.68 | P40: 0.847 | R40: 0.000 | T40: 0.000 | V40: 0.000 | X40: 0.000 | Y40: 11.29 | Z40: 0.113 | AA40: 18652644 | AB40: 0.66 | AC40: FL | AD40: 51.0202 | AE40: Professional degree (doctoral level) | AF40: 18, 19
A41: Audiologists | B41: 2009 | C41: 16 | D41: Idaho | E41: 4 | F41: 3 | G41: 1 | L41: 0 | M41: 75.00 | N41: 0.750 | O41: 25 | P41: 0.250 | R41: 0.000 | T41: 0.000 | V41: 0.000 | X41: 0.000 | Y41: 0 | Z41: 0.000 | AA41: 1554439 | AB41: 0.26 | AC41: ID | AD41: 51.0202 | AE41: Professional degree (doctoral level) | AF41: 18, 19
A42: Audiologists | B42: 2009 | C42: 17 | D42: Illinois | E42: 14 | F42: 1 | G42: 13 | L42: 1 | M42: 7.14 | N42: 0.071 | O42: 92.86 | P42: 0.929 | R42: 0.000 | T42: 0.000 | V42: 0.000 | X42: 0.000 | Y42: 7.14 | Z42: 0.071 | AA42: 12796778 | AB42: 0.11 | AC42: IL | AD42: 51.0202 | AE42: Professional degree (doctoral level) | AF42: 18, 19
A43: Audiologists | B43: 2009 | C43: 20 | D43: Kansas | E43: 9 | F43: 0 | G43: 9 | L43: 0 | M43: 0.00 | N43: 0.000 | O43: 100 | P43: 1.000 | R43: 0.000 | T43: 0.000 | V43: 0.000 | X43: 0.000 | Y43: 0 | Z43: 0.000 | AA43: 2832704 | AB43: 0.32 | AC43: KS | AD43: 51.0202 | AE43: Professional degree (doctoral level) | AF43: 18, 19
A44: Audiologists | B44: 2009 | C44: 21 | D44: Kentucky | E44: 7 | F44: 0 | G44: 7 | L44: 0 | M44: 0.00 | N44: 0.000 | O44: 100 | P44: 1.000 | R44: 0.000 | T44: 0.000 | V44: 0.000 | X44: 0.000 | Y44: 0 | Z44: 0.000 | AA44: 4317074 | AB44: 0.16 | AC44: KY | AD44: 51.0202 | AE44: Professional degree (doctoral level) | AF44: 18, 19
A45: Audiologists | B45: 2009 | C45: 22 | D45: Louisiana | E45: 5 | F45: 2 | G45: 3 | L45: 0 | M45: 40.00 | N45: 0.400 | O45: 60 | P45: 0.600 | R45: 0.000 | T45: 0.000 | V45: 0.000 | X45: 0.000 | Y45: 0 | Z45: 0.000 | AA45: 4491648 | AB45: 0.11 | AC45: LA | AD45: 51.0202 | AE45: Professional degree (doctoral level) | AF45: 18, 19
A46: Audiologists | B46: 2009 | C46: 24 | D46: Maryland | E46: 10 | F46: 0 | G46: 10 | L46: 2 | M46: 0.00 | N46: 0.000 | O46: 100 | P46: 1.000 | R46: 0.000 | T46: 0.000 | V46: 0.000 | X46: 0.000 | Y46: 20 | Z46: 0.200 | AA46: 5730388 | AB46: 0.17 | AC46: MD | AD46: 51.0202 | AE46: Professional degree (doctoral level) | AF46: 18, 19
A47: Audiologists | B47: 2009 | C47: 25 | D47: Massachusetts | E47: 6 | F47: 2 | G47: 4 | L47: 1 | M47: 33.33 | N47: 0.333 | O47: 66.67 | P47: 0.667 | R47: 0.000 | T47: 0.000 | V47: 0.000 | X47: 0.000 | Y47: 16.67 | Z47: 0.167 | AA47: 6517613 | AB47: 0.09 | AC47: MA | AD47: 51.0202 | AE47: Professional degree (doctoral level) | AF47: 18, 19
A48: Audiologists | B48: 2009 | C48: 26 | D48: Michigan | E48: 37 | F48: 5 | G48: 32 | L48: 8 | M48: 13.51 | N48: 0.135 | O48: 86.49 | P48: 0.865 | R48: 0.000 | T48: 0.000 | V48: 0.000 | X48: 0.000 | Y48: 21.62 | Z48: 0.216 | AA48: 9901591 | AB48: 0.37 | AC48: MI | AD48: 51.0202 | AE48: Professional degree (doctoral level) | AF48: 18, 19
A49: Audiologists | B49: 2009 | C49: 27 | D49: Minnesota | E49: 10 | F49: 1 | G49: 9 | H49: 7 | I49: 0 | J49: 1 | K49: 1 | L49: 1 | M49: 10.00 | N49: 0.100 | O49: 90 | P49: 0.900 | Q49: 70 | R49: 0.700 | S49: 0 | T49: 0.000 | U49: 10 | V49: 0.100 | W49: 10 | X49: 0.100 | Y49: 10 | Z49: 0.100 | AA49: 5281203 | AB49: 0.19 | AC49: MN | AD49: 51.0202 | AE49: Professional degree (doctoral level) | AF49: 18, 19
A50: Audiologists | B50: 2009 | C50: 29 | D50: Missouri | E50: 297 | F50: 34 | G50: 263 | L50: 5 | M50: 11.45 | N50: 0.115 | O50: 88.55 | P50: 0.886 | R50: 0.000 | T50: 0.000 | V50: 0.000 | X50: 0.000 | Y50: 1.68 | Z50: 0.017 | AA50: 5961088 | AB50: 4.98 | AC50: MO | AD50: 51.0202 | AE50: Professional degree (doctoral level) | AF50: 18, 19
A51: Audiologists | B51: 2009 | C51: 31 | D51: Nebraska | E51: 8 | F51: 0 | G51: 8 | L51: 0 | M51: 0.00 | N51: 0.000 | O51: 100 | P51: 1.000 | R51: 0.000 | T51: 0.000 | V51: 0.000 | X51: 0.000 | Y51: 0 | Z51: 0.000 | AA51: 1812683 | AB51: 0.44 | AC51: NE | AD51: 51.0202 | AE51: Professional degree (doctoral level) | AF51: 18, 19
A52: Audiologists | B52: 2009 | C52: 34 | D52: New Jersey | E52: 1 | F52: 0 | G52: 1 | H52: 0 | I52: 0 | J52: 1 | K52: 0 | L52: 0 | M52: 0.00 | N52: 0.000 | O52: 100 | P52: 1.000 | Q52: 0 | R52: 0.000 | S52: 0 | T52: 0.000 | U52: 100 | V52: 1.000 | W52: 0 | X52: 0.000 | Y52: 0 | Z52: 0.000 | AA52: 8755602 | AB52: 0.01 | AC52: NJ | AD52: 51.0202 | AE52: Professional degree (doctoral level) | AF52: 18, 19
A53: Audiologists | B53: 2009 | C53: 36 | D53: New York | E53: 18 | F53: 1 | G53: 17 | L53: 1 | M53: 5.56 | N53: 0.056 | O53: 94.44 | P53: 0.944 | R53: 0.000 | T53: 0.000 | V53: 0.000 | X53: 0.000 | Y53: 5.56 | Z53: 0.056 | AA53: 19307066 | AB53: 0.09 | AC53: NY | AD53: 51.0202 | AE53: Professional degree (doctoral level) | AF53: 18, 19
A54: Audiologists | B54: 2009 | C54: 37 | D54: North Carolina | E54: 2 | F54: 0 | G54: 2 | L54: 0 | M54: 0.00 | N54: 0.000 | O54: 100 | P54: 1.000 | R54: 0.000 | T54: 0.000 | V54: 0.000 | X54: 0.000 | Y54: 0 | Z54: 0.000 | AA54: 9449566 | AB54: 0.02 | AC54: NC | AD54: 51.0202 | AE54: Professional degree (doctoral level) | AF54: 18, 19
A55: Audiologists | B55: 2009 | C55: 39 | D55: Ohio | E55: 17 | F55: 2 | G55: 15 | L55: 1 | M55: 11.76 | N55: 0.118 | O55: 88.24 | P55: 0.882 | R55: 0.000 | T55: 0.000 | V55: 0.000 | X55: 0.000 | Y55: 5.88 | Z55: 0.059 | AA55: 11528896 | AB55: 0.15 | AC55: OH | AD55: 51.0202 | AE55: Professional degree (doctoral level) | AF55: 18, 19
A56: Audiologists | B56: 2009 | C56: 40 | D56: Oklahoma | E56: 8 | F56: 1 | G56: 7 | L56: 0 | M56: 12.50 | N56: 0.125 | O56: 87.5 | P56: 0.875 | R56: 0.000 | T56: 0.000 | V56: 0.000 | X56: 0.000 | Y56: 0 | Z56: 0.000 | AA56: 3717572 | AB56: 0.22 | AC56: OK | AD56: 51.0202 | AE56: Professional degree (doctoral level) | AF56: 18, 19
A57: Audiologists | B57: 2009 | C57: 42 | D57: Pennsylvania | E57: 492 | F57: 69 | G57: 423 | L57: 24 | M57: 14.02 | N57: 0.140 | O57: 85.98 | P57: 0.860 | R57: 0.000 | T57: 0.000 | V57: 0.000 | X57: 0.000 | Y57: 4.88 | Z57: 0.049 | AA57: 12666858 | AB57: 3.88 | AC57: PA | AD57: 51.0202 | AE57: Professional degree (doctoral level) | AF57: 18, 19
A58: Audiologists | B58: 2009 | C58: 44 | D58: Rhode Island | E58: 0 | F58: 0 | G58: 0 | L58: 0 | N58: 0.000 | P58: 0.000 | R58: 0.000 | T58: 0.000 | V58: 0.000 | X58: 0.000 | Z58: 0.000 | AA58: 1053646 | AB58: 0 | AC58: RI | AD58: 51.0202 | AE58: Professional degree (doctoral level) | AF58: 18, 19
A59: Audiologists | B59: 2009 | C59: 46 | D59: South Dakota | E59: 3 | F59: 0 | G59: 3 | L59: 0 | M59: 0.00 | N59: 0.000 | O59: 100 | P59: 1.000 | R59: 0.000 | T59: 0.000 | V59: 0.000 | X59: 0.000 | Y59: 0 | Z59: 0.000 | AA59: 807067 | AB59: 0.37 | AC59: SD | AD59: 51.0202 | AE59: Professional degree (doctoral level) | AF59: 18, 19
A60: Audiologists | B60: 2009 | C60: 47 | D60: Tennessee | E60: 15 | F60: 2 | G60: 13 | L60: 1 | M60: 13.33 | N60: 0.133 | O60: 86.67 | P60: 0.867 | R60: 0.000 | T60: 0.000 | V60: 0.000 | X60: 0.000 | Y60: 6.67 | Z60: 0.067 | AA60: 6306019 | AB60: 0.24 | AC60: TN | AD60: 51.0202 | AE60: Professional degree (doctoral level) | AF60: 18, 19
A61: Audiologists | B61: 2009 | C61: 48 | D61: Texas | E61: 33 | F61: 8 | G61: 25 | L61: 1 | M61: 24.24 | N61: 0.242 | O61: 75.76 | P61: 0.758 | R61: 0.000 | T61: 0.000 | V61: 0.000 | X61: 0.000 | Y61: 3.03 | Z61: 0.030 | AA61: 24801761 | AB61: 0.13 | AC61: TX | AD61: 51.0202 | AE61: Professional degree (doctoral level) | AF61: 18, 19
A62: Audiologists | B62: 2009 | C62: 49 | D62: Utah | E62: 9 | F62: 4 | G62: 5 | L62: 0 | M62: 44.44 | N62: 0.444 | O62: 55.56 | P62: 0.556 | R62: 0.000 | T62: 0.000 | V62: 0.000 | X62: 0.000 | Y62: 0 | Z62: 0.000 | AA62: 2723421 | AB62: 0.33 | AC62: UT | AD62: 51.0202 | AE62: Professional degree (doctoral level) | AF62: 18, 19
A63: Audiologists | B63: 2009 | C63: 51 | D63: Virginia | E63: 7 | F63: 0 | G63: 7 | L63: 0 | M63: 0.00 | N63: 0.000 | O63: 100 | P63: 1.000 | R63: 0.000 | T63: 0.000 | V63: 0.000 | X63: 0.000 | Y63: 0 | Z63: 0.000 | AA63: 7925937 | AB63: 0.09 | AC63: VA | AD63: 51.0202 | AE63: Professional degree (doctoral level) | AF63: 18, 19
A64: Audiologists | B64: 2009 | C64: 53 | D64: Washington | E64: 13 | F64: 3 | G64: 10 | L64: 3 | M64: 23.08 | N64: 0.231 | O64: 76.92 | P64: 0.769 | R64: 0.000 | T64: 0.000 | V64: 0.000 | X64: 0.000 | Y64: 23.08 | Z64: 0.231 | AA64: 6667426 | AB64: 0.19 | AC64: WA | AD64: 51.0202 | AE64: Professional degree (doctoral level) | AF64: 18, 19
A65: Audiologists | B65: 2009 | C65: 54 | D65: West Virginia | E65: 3 | F65: 0 | G65: 3 | L65: 0 | M65: 0.00 | N65: 0.000 | O65: 100 | P65: 1.000 | R65: 0.000 | T65: 0.000 | V65: 0.000 | X65: 0.000 | Y65: 0 | Z65: 0.000 | AA65: 1847775 | AB65: 0.16 | AC65: WV | AD65: 51.0202 | AE65: Professional degree (doctoral level) | AF65: 18, 19
A66: Audiologists | B66: 2009 | C66: 55 | D66: Wisconsin | E66: 11 | F66: 1 | G66: 10 | H66: 11 | I66: 0 | J66: 0 | K66: 0 | L66: 0 | M66: 9.09 | N66: 0.091 | O66: 90.91 | P66: 0.909 | Q66: 100 | R66: 1.000 | S66: 0 | T66: 0.000 | U66: 0 | V66: 0.000 | W66: 0 | X66: 0.000 | Y66: 0 | Z66: 0.000 | AA66: 5669264 | AB66: 0.19 | AC66: WI | AD66: 51.0202 | AE66: Professional degree (doctoral level) | AF66: 18, 19
A67: Audiologists | B67: 2009 | C67: 72 | D67: Puerto Rico | E67: 0 | F67: 0 | G67: 0 | H67: 0 | I67: 0 | J67: 0 | K67: 0 | L67: 0 | N67: =M67/100 -> 0.000 | P67: =O67/100 -> 0.000 | R67: =Q67/100 -> 0.000 | T67: =S67/100 -> 0.000 | V67: =U67/100 -> 0.000 | X67: =W67/100 -> 0.000 | Z67: =Y67/100 -> 0.000 | AA67: 3740410 | AB67: 0 | AC67: PR | AD67: 51.0202 | AE67: Professional degree (doctoral level) | AF67: 18, 19
A68: Audiologists | B68: 2010 | C68: 1 | D68: Alabama | E68: 11 | F68: 0 | G68: 11 | H68: 9 | I68: 1 | J68: 0 | K68: 1 | L68: 0 | M68: 0.00 | N68: 0.000 | O68: 100 | P68: 1.000 | Q68: 81.82 | R68: 0.818 | S68: 9.09 | T68: 0.091 | U68: 0 | V68: 0.000 | W68: 9.09 | X68: 0.091 | Y68: 0 | Z68: 0.000 | AA68: 4788095 | AB68: 0.23 | AC68: AL | AD68: 51.0202 | AE68: Professional degree (doctoral level) | AF68: 18, 19
A69: Audiologists | B69: 2010 | C69: 6 | D69: California | E69: 15 | F69: 6 | G69: 9 | L69: 1 | M69: 40.00 | N69: 0.400 | O69: 60 | P69: 0.600 | R69: 0.000 | T69: 0.000 | V69: 0.000 | X69: 0.000 | Y69: 6.67 | Z69: 0.067 | AA69: 37322523 | AB69: 0.04 | AC69: CA | AD69: 51.0202 | AE69: Professional degree (doctoral level) | AF69: 18, 19
A70: Audiologists | B70: 2010 | C70: 8 | D70: Colorado | E70: 6 | F70: 0 | G70: 6 | L70: 1 | M70: 0.00 | N70: 0.000 | O70: 100 | P70: 1.000 | R70: 0.000 | T70: 0.000 | V70: 0.000 | X70: 0.000 | Y70: 16.67 | Z70: 0.167 | AA70: 5046928 | AB70: 0.12 | AC70: CO | AD70: 51.0202 | AE70: Professional degree (doctoral level) | AF70: 18, 19
A71: Audiologists | B71: 2010 | C71: 9 | D71: Connecticut | E71: 11 | F71: 0 | G71: 11 | L71: 1 | M71: 0.00 | N71: 0.000 | O71: 100 | P71: 1.000 | R71: 0.000 | T71: 0.000 | V71: 0.000 | X71: 0.000 | Y71: 9.09 | Z71: 0.091 | AA71: 3580281 | AB71: 0.31 | AC71: CT | AD71: 51.0202 | AE71: Professional degree (doctoral level) | AF71: 18, 19
A72: Audiologists | B72: 2010 | C72: 11 | D72: District of Columbia | E72: 13 | F72: 2 | G72: 11 | H72: 11 | I72: 0 | J72: 0 | K72: 2 | L72: 0 | M72: 15.38 | N72: 0.154 | O72: 84.62 | P72: 0.846 | Q72: 84.62 | R72: 0.846 | S72: 0 | T72: 0.000 | U72: 0 | V72: 0.000 | W72: 15.38 | X72: 0.154 | Y72: 0 | Z72: 0.000 | AA72: 604718 | AB72: 2.15 | AC72: DC | AD72: 51.0202 | AE72: Professional degree (doctoral level) | AF72: 18, 19
A73: Audiologists | B73: 2010 | C73: 12 | D73: Florida | E73: 123 | F73: 15 | G73: 108 | L73: 18 | M73: 12.20 | N73: 0.122 | O73: 87.8 | P73: 0.878 | R73: 0.000 | T73: 0.000 | V73: 0.000 | X73: 0.000 | Y73: 14.63 | Z73: 0.146 | AA73: 18842405 | AB73: 0.65 | AC73: FL | AD73: 51.0202 | AE73: Professional degree (doctoral level) | AF73: 18, 19
A74: Audiologists | B74: 2010 | C74: 16 | D74: Idaho | E74: 5 | F74: 1 | G74: 4 | L74: 1 | M74: 20.00 | N74: 0.200 | O74: 80 | P74: 0.800 | R74: 0.000 | T74: 0.000 | V74: 0.000 | X74: 0.000 | Y74: 20 | Z74: 0.200 | AA74: 1571339 | AB74: 0.32 | AC74: ID | AD74: 51.0202 | AE74: Professional degree (doctoral level) | AF74: 18, 19
A75: Audiologists | B75: 2010 | C75: 17 | D75: Illinois | E75: 11 | F75: 0 | G75: 11 | L75: 0 | M75: 0.00 | N75: 0.000 | O75: 100 | P75: 1.000 | R75: 0.000 | T75: 0.000 | V75: 0.000 | X75: 0.000 | Y75: 0 | Z75: 0.000 | AA75: 12845460 | AB75: 0.09 | AC75: IL | AD75: 51.0202 | AE75: Professional degree (doctoral level) | AF75: 18, 19
A76: Audiologists | B76: 2010 | C76: 20 | D76: Kansas | E76: 8 | F76: 1 | G76: 7 | L76: 0 | M76: 12.50 | N76: 0.125 | O76: 87.5 | P76: 0.875 | R76: 0.000 | T76: 0.000 | V76: 0.000 | X76: 0.000 | Y76: 0 | Z76: 0.000 | AA76: 2858835 | AB76: 0.28 | AC76: KS | AD76: 51.0202 | AE76: Professional degree (doctoral level) | AF76: 18, 19
A77: Audiologists | B77: 2010 | C77: 22 | D77: Louisiana | E77: 12 | F77: 3 | G77: 9 | H77: 8 | I77: 0 | J77: 0 | K77: 1 | L77: 3 | M77: 25.00 | N77: 0.250 | O77: 75 | P77: 0.750 | Q77: 66.67 | R77: 0.667 | S77: 0 | T77: 0.000 | U77: 0 | V77: 0.000 | W77: 8.33 | X77: 0.083 | Y77: 25 | Z77: 0.250 | AA77: 4544804 | AB77: 0.26 | AC77: LA | AD77: 51.0202 | AE77: Professional degree (doctoral level) | AF77: 18, 19
A78: Audiologists | B78: 2010 | C78: 24 | D78: Maryland | E78: 11 | F78: 1 | G78: 10 | L78: 1 | M78: 9.09 | N78: 0.091 | O78: 90.91 | P78: 0.909 | R78: 0.000 | T78: 0.000 | V78: 0.000 | X78: 0.000 | Y78: 9.09 | Z78: 0.091 | AA78: 5791715 | AB78: 0.19 | AC78: MD | AD78: 51.0202 | AE78: Professional degree (doctoral level) | AF78: 18, 19
A79: Audiologists | B79: 2010 | C79: 25 | D79: Massachusetts | E79: 17 | F79: 1 | G79: 16 | L79: 2 | M79: 5.88 | N79: 0.059 | O79: 94.12 | P79: 0.941 | R79: 0.000 | T79: 0.000 | V79: 0.000 | X79: 0.000 | Y79: 11.76 | Z79: 0.118 | AA79: 6569724 | AB79: 0.26 | AC79: MA | AD79: 51.0202 | AE79: Professional degree (doctoral level) | AF79: 18, 19
A80: Audiologists | B80: 2010 | C80: 26 | D80: Michigan | E80: 46 | F80: 7 | G80: 39 | L80: 8 | M80: 15.22 | N80: 0.152 | O80: 84.78 | P80: 0.848 | R80: 0.000 | T80: 0.000 | V80: 0.000 | X80: 0.000 | Y80: 17.39 | Z80: 0.174 | AA80: 9880111 | AB80: 0.47 | AC80: MI | AD80: 51.0202 | AE80: Professional degree (doctoral level) | AF80: 18, 19
A81: Audiologists | B81: 2010 | C81: 27 | D81: Minnesota | E81: 7 | F81: 1 | G81: 6 | H81: 7 | I81: 0 | J81: 0 | K81: 0 | L81: 0 | M81: 14.29 | N81: 0.143 | O81: 85.71 | P81: 0.857 | Q81: 100 | R81: 1.000 | S81: 0 | T81: 0.000 | U81: 0 | V81: 0.000 | W81: 0 | X81: 0.000 | Y81: 0 | Z81: 0.000 | AA81: 5312197 | AB81: 0.13 | AC81: MN | AD81: 51.0202 | AE81: Professional degree (doctoral level) | AF81: 18, 19
A82: Audiologists | B82: 2010 | C82: 29 | D82: Missouri | E82: 340 | F82: 58 | G82: 282 | L82: 31 | M82: 17.06 | N82: 0.171 | O82: 82.94 | P82: 0.829 | R82: 0.000 | T82: 0.000 | V82: 0.000 | X82: 0.000 | Y82: 9.12 | Z82: 0.091 | AA82: 5996167 | AB82: 5.67 | AC82: MO | AD82: 51.0202 | AE82: Professional degree (doctoral level) | AF82: 18, 19
A83: Audiologists | B83: 2010 | C83: 31 | D83: Nebraska | E83: 6 | F83: 2 | G83: 4 | L83: 0 | M83: 33.33 | N83: 0.333 | O83: 66.67 | P83: 0.667 | R83: 0.000 | T83: 0.000 | V83: 0.000 | X83: 0.000 | Y83: 0 | Z83: 0.000 | AA83: 1830194 | AB83: 0.33 | AC83: NE | AD83: 51.0202 | AE83: Professional degree (doctoral level) | AF83: 18, 19
A84: Audiologists | B84: 2010 | C84: 36 | D84: New York | E84: 13 | F84: 1 | G84: 12 | L84: 1 | M84: 7.69 | N84: 0.077 | O84: 92.31 | P84: 0.923 | R84: 0.000 | T84: 0.000 | V84: 0.000 | X84: 0.000 | Y84: 7.69 | Z84: 0.077 | AA84: 19420354 | AB84: 0.07 | AC84: NY | AD84: 51.0202 | AE84: Professional degree (doctoral level) | AF84: 18, 19
A85: Audiologists | B85: 2010 | C85: 37 | D85: North Carolina | E85: 7 | F85: 0 | G85: 7 | H85: 6 | I85: 1 | J85: 0 | K85: 0 | L85: 0 | M85: 0.00 | N85: 0.000 | O85: 100 | P85: 1.000 | Q85: 85.71 | R85: 0.857 | S85: 14.29 | T85: 0.143 | U85: 0 | V85: 0.000 | W85: 0 | X85: 0.000 | Y85: 0 | Z85: 0.000 | AA85: 9571037 | AB85: 0.07 | AC85: NC | AD85: 51.0202 | AE85: Professional degree (doctoral level) | AF85: 18, 19
A86: Audiologists | B86: 2010 | C86: 39 | D86: Ohio | E86: 19 | F86: 1 | G86: 18 | H86: 16 | I86: 1 | J86: 2 | K86: 0 | L86: 0 | M86: 5.26 | N86: 0.053 | O86: 94.74 | P86: 0.947 | Q86: 84.21 | R86: 0.842 | S86: 5.26 | T86: 0.053 | U86: 10.53 | V86: 0.105 | W86: 0 | X86: 0.000 | Y86: 0 | Z86: 0.000 | AA86: 11541932 | AB86: 0.16 | AC86: OH | AD86: 51.0202 | AE86: Professional degree (doctoral level) | AF86: 18, 19
A87: Audiologists | B87: 2010 | C87: 40 | D87: Oklahoma | E87: 4 | F87: 0 | G87: 4 | L87: 0 | M87: 0.00 | N87: 0.000 | O87: 100 | P87: 1.000 | R87: 0.000 | T87: 0.000 | V87: 0.000 | X87: 0.000 | Y87: 0 | Z87: 0.000 | AA87: 3759558 | AB87: 0.11 | AC87: OK | AD87: 51.0202 | AE87: Professional degree (doctoral level) | AF87: 18, 19
A88: Audiologists | B88: 2010 | C88: 42 | D88: Pennsylvania | E88: 362 | F88: 52 | G88: 310 | L88: 12 | M88: 14.36 | N88: 0.144 | O88: 85.64 | P88: 0.856 | R88: 0.000 | T88: 0.000 | V88: 0.000 | X88: 0.000 | Y88: 3.31 | Z88: 0.033 | AA88: 12716596 | AB88: 2.85 | AC88: PA | AD88: 51.0202 | AE88: Professional degree (doctoral level) | AF88: 18, 19
A89: Audiologists | B89: 2010 | C89: 46 | D89: South Dakota | E89: 3 | F89: 0 | G89: 3 | H89: 3 | I89: 0 | J89: 0 | K89: 0 | L89: 0 | M89: 0.00 | N89: 0.000 | O89: 100 | P89: 1.000 | Q89: 100 | R89: 1.000 | S89: 0 | T89: 0.000 | U89: 0 | V89: 0.000 | W89: 0 | X89: 0.000 | Y89: 0 | Z89: 0.000 | AA89: 816068 | AB89: 0.37 | AC89: SD | AD89: 51.0202 | AE89: Professional degree (doctoral level) | AF89: 18, 19
A90: Audiologists | B90: 2010 | C90: 47 | D90: Tennessee | E90: 11 | F90: 2 | G90: 9 | L90: 1 | M90: 18.18 | N90: 0.182 | O90: 81.82 | P90: 0.818 | R90: 0.000 | T90: 0.000 | V90: 0.000 | X90: 0.000 | Y90: 9.09 | Z90: 0.091 | AA90: 6356388 | AB90: 0.17 | AC90: TN | AD90: 51.0202 | AE90: Professional degree (doctoral level) | AF90: 18, 19
A91: Audiologists | B91: 2010 | C91: 48 | D91: Texas | E91: 20 | F91: 2 | G91: 18 | L91: 2 | M91: 10.00 | N91: 0.100 | O91: 90 | P91: 0.900 | R91: 0.000 | T91: 0.000 | V91: 0.000 | X91: 0.000 | Y91: 10 | Z91: 0.100 | AA91: 25238386 | AB91: 0.08 | AC91: TX | AD91: 51.0202 | AE91: Professional degree (doctoral level) | AF91: 18, 19
A92: Audiologists | B92: 2010 | C92: 49 | D92: Utah | E92: 11 | F92: 8 | G92: 3 | L92: 0 | M92: 72.73 | N92: 0.727 | O92: 27.27 | P92: 0.273 | R92: 0.000 | T92: 0.000 | V92: 0.000 | X92: 0.000 | Y92: 0 | Z92: 0.000 | AA92: 2776212 | AB92: 0.4 | AC92: UT | AD92: 51.0202 | AE92: Professional degree (doctoral level) | AF92: 18, 19
A93: Audiologists | B93: 2010 | C93: 51 | D93: Virginia | E93: 8 | F93: 1 | G93: 7 | L93: 0 | M93: 12.50 | N93: 0.125 | O93: 87.5 | P93: 0.875 | R93: 0.000 | T93: 0.000 | V93: 0.000 | X93: 0.000 | Y93: 0 | Z93: 0.000 | AA93: 8025105 | AB93: 0.1 | AC93: VA | AD93: 51.0202 | AE93: Professional degree (doctoral level) | AF93: 18, 19
A94: Audiologists | B94: 2010 | C94: 54 | D94: West Virginia | E94: 9 | F94: 0 | G94: 9 | H94: 8 | I94: 0 | J94: 0 | K94: 0 | L94: 1 | M94: 0.00 | N94: 0.000 | O94: 100 | P94: 1.000 | Q94: 88.89 | R94: 0.889 | S94: 0 | T94: 0.000 | U94: 0 | V94: 0.000 | W94: 0 | X94: 0.000 | Y94: 11.11 | Z94: 0.111 | AA94: 1854404 | AB94: 0.49 | AC94: WV | AD94: 51.0202 | AE94: Professional degree (doctoral level) | AF94: 18, 19
A95: Audiologists | B95: 2010 | C95: 55 | D95: Wisconsin | E95: 14 | F95: 1 | G95: 13 | H95: 12 | I95: 0 | J95: 0 | K95: 0 | L95: 2 | M95: 7.14 | N95: 0.071 | O95: 92.86 | P95: 0.929 | Q95: 85.71 | R95: 0.857 | S95: 0 | T95: 0.000 | U95: 0 | V95: 0.000 | W95: 0 | X95: 0.000 | Y95: 14.29 | Z95: 0.143 | AA95: 5692038 | AB95: 0.25 | AC95: WI | AD95: 51.0202 | AE95: Professional degree (doctoral level) | AF95: 18, 19
A96: Audiologists | B96: 2010 | C96: 72 | D96: Puerto Rico | E96: 0 | F96: 0 | G96: 0 | H96: 0 | I96: 0 | J96: 0 | K96: 0 | L96: 0 | N96: 0.000 | P96: 0.000 | R96: 0.000 | T96: 0.000 | V96: 0.000 | X96: 0.000 | Z96: 0.000 | AA96: 3724465 | AB96: 0 | AC96: PR | AD96: 51.0202 | AE96: Professional degree (doctoral level) | AF96: 18, 19
A97: Audiologists | B97: 2011 | C97: 1 | D97: Alabama | E97: 11 | F97: 1 | G97: 10 | H97: 11 | I97: 0 | J97: 0 | K97: 0 | L97: 0 | M97: 9.09 | N97: 0.091 | O97: 90.91 | P97: 0.909 | Q97: 100 | R97: 1.000 | S97: 0 | T97: 0.000 | U97: 0 | V97: 0.000 | W97: 0 | X97: 0.000 | Y97: 0 | Z97: 0.000 | AA97: 4812576 | AB97: 0.23 | AC97: AL | AD97: 51.0202 | AE97: Professional degree (doctoral level) | AF97: 18, 19
A98: Audiologists | B98: 2011 | C98: 6 | D98: California | E98: 5 | F98: 0 | G98: 5 | H98: 4 | I98: 0 | J98: 1 | K98: 0 | L98: 0 | M98: 0.00 | N98: 0.000 | O98: 100 | P98: 1.000 | Q98: 80 | R98: 0.800 | S98: 0 | T98: 0.000 | U98: 20 | V98: 0.200 | W98: 0 | X98: 0.000 | Y98: 0 | Z98: 0.000 | AA98: 37651212 | AB98: 0.01 | AC98: CA | AD98: 51.0202 | AE98: Professional degree (doctoral level) | AF98: 18, 19
A99: Audiologists | B99: 2011 | C99: 8 | D99: Colorado | E99: 5 | F99: 3 | G99: 2 | H99: 3 | I99: 0 | J99: 2 | K99: 0 | L99: 0 | M99: 60.00 | N99: 0.600 | O99: 40 | P99: 0.400 | Q99: 60 | R99: 0.600 | S99: 0 | T99: 0.000 | U99: 40 | V99: 0.400 | W99: 0 | X99: 0.000 | Y99: 0 | Z99: 0.000 | AA99: 5118837 | AB99: 0.1 | AC99: CO | AD99: 51.0202 | AE99: Professional degree (doctoral level) | AF99: 18, 19
A100: Audiologists | B100: 2011 | C100: 9 | D100: Connecticut | E100: 8 | F100: 3 | G100: 5 | H100: 6 | I100: 0 | J100: 0 | K100: 0 | L100: 2 | M100: 37.50 | N100: 0.375 | O100: 62.5 | P100: 0.625 | Q100: 75 | R100: 0.750 | S100: 0 | T100: 0.000 | U100: 0 | V100: 0.000 | W100: 0 | X100: 0.000 | Y100: 25 | Z100: 0.250 | AA100: 3594181 | AB100: 0.22 | AC100: CT | AD100: 51.0202 | AE100: Professional degree (doctoral level) | AF100: 18, 19
A101: Audiologists | B101: 2011 | C101: 11 | D101: District of Columbia | E101: 13 | F101: 2 | G101: 11 | H101: 10 | I101: 0 | J101: 0 | K101: 2 | L101: 1 | M101: 15.38 | N101: 0.154 | O101: 84.62 | P101: 0.846 | Q101: 76.92 | R101: 0.769 | S101: 0 | T101: 0.000 | U101: 0 | V101: 0.000 | W101: 15.38 | X101: 0.154 | Y101: 7.69 | Z101: 0.077 | AA101: 617465 | AB101: 2.11 | AC101: DC | AD101: 51.0202 | AE101: Professional degree (doctoral level) | AF101: 18, 19
A102: Audiologists | B102: 2011 | C102: 12 | D102: Florida | E102: 94 | F102: 16 | G102: 78 | H102: 72 | I102: 3 | J102: 5 | K102: 2 | L102: 12 | M102: 17.02 | N102: 0.170 | O102: 82.98 | P102: 0.830 | Q102: 76.6 | R102: 0.766 | S102: 3.19 | T102: 0.032 | U102: 5.32 | V102: 0.053 | W102: 2.13 | X102: 0.021 | Y102: 12.77 | Z102: 0.128 | AA102: 19036879 | AB102: 0.49 | AC102: FL | AD102: 51.0202 | AE102: Professional degree (doctoral level) | AF102: 18, 19
A103: Audiologists | B103: 2011 | C103: 16 | D103: Idaho | E103: 9 | F103: 5 | G103: 4 | H103: 8 | I103: 0 | J103: 0 | K103: 0 | L103: 1 | M103: 55.56 | N103: 0.556 | O103: 44.44 | P103: 0.444 | Q103: 88.89 | R103: 0.889 | S103: 0 | T103: 0.000 | U103: 0 | V103: 0.000 | W103: 0 | X103: 0.000 | Y103: 11.11 | Z103: 0.111 | AA103: 1586880 | AB103: 0.57 | AC103: ID | AD103: 51.0202 | AE103: Professional degree (doctoral level) | AF103: 18, 19
A104: Audiologists | B104: 2011 | C104: 17 | D104: Illinois | E104: 19 | F104: 0 | G104: 19 | H104: 14 | I104: 0 | J104: 5 | K104: 0 | L104: 0 | M104: 0.00 | N104: 0.000 | O104: 100 | P104: 1.000 | Q104: 73.68 | R104: 0.737 | S104: 0 | T104: 0.000 | U104: 26.32 | V104: 0.263 | W104: 0 | X104: 0.000 | Y104: 0 | Z104: 0.000 | AA104: 12892409 | AB104: 0.15 | AC104: IL | AD104: 51.0202 | AE104: Professional degree (doctoral level) | AF104: 18, 19
A105: Audiologists | B105: 2011 | C105: 20 | D105: Kansas | E105: 6 | F105: 1 | G105: 5 | H105: 6 | I105: 0 | J105: 0 | K105: 0 | L105: 0 | M105: 16.67 | N105: 0.167 | O105: 83.33 | P105: 0.833 | Q105: 100 | R105: 1.000 | S105: 0 | T105: 0.000 | U105: 0 | V105: 0.000 | W105: 0 | X105: 0.000 | Y105: 0 | Z105: 0.000 | AA105: 2872529 | AB105: 0.21 | AC105: KS | AD105: 51.0202 | AE105: Professional degree (doctoral level) | AF105: 18, 19
A106: Audiologists | B106: 2011 | C106: 22 | D106: Louisiana | E106: 7 | F106: 0 | G106: 7 | H106: 7 | I106: 0 | J106: 0 | K106: 0 | L106: 0 | M106: 0.00 | N106: 0.000 | O106: 100 | P106: 1.000 | Q106: 100 | R106: 1.000 | S106: 0 | T106: 0.000 | U106: 0 | V106: 0.000 | W106: 0 | X106: 0.000 | Y106: 0 | Z106: 0.000 | AA106: 4577089 | AB106: 0.15 | AC106: LA | AD106: 51.0202 | AE106: Professional degree (doctoral level) | AF106: 18, 19
A107: Audiologists | B107: 2011 | C107: 24 | D107: Maryland | E107: 7 | F107: 0 | G107: 7 | H107: 4 | I107: 2 | J107: 0 | K107: 1 | L107: 0 | M107: 0.00 | N107: 0.000 | O107: 100 | P107: 1.000 | Q107: 57.14 | R107: 0.571 | S107: 28.57 | T107: 0.286 | U107: 0 | V107: 0.000 | W107: 14.29 | X107: 0.143 | Y107: 0 | Z107: 0.000 | AA107: 5854930 | AB107: 0.12 | AC107: MD | AD107: 51.0202 | AE107: Professional degree (doctoral level) | AF107: 18, 19
A108: Audiologists | B108: 2011 | C108: 25 | D108: Massachusetts | E108: 10 | F108: 1 | G108: 9 | H108: 5 | I108: 0 | J108: 1 | K108: 0 | L108: 4 | M108: 10.00 | N108: 0.100 | O108: 90 | P108: 0.900 | Q108: 50 | R108: 0.500 | S108: 0 | T108: 0.000 | U108: 10 | V108: 0.100 | W108: 0 | X108: 0.000 | Y108: 40 | Z108: 0.400 | AA108: 6630673 | AB108: 0.15 | AC108: MA | AD108: 51.0202 | AE108: Professional degree (doctoral level) | AF108: 18, 19
A109: Audiologists | B109: 2011 | C109: 26 | D109: Michigan | E109: 30 | F109: 9 | G109: 21 | H109: 23 | I109: 0 | J109: 0 | K109: 0 | L109: 7 | M109: 30.00 | N109: 0.300 | O109: 70 | P109: 0.700 | Q109: 76.67 | R109: 0.767 | S109: 0 | T109: 0.000 | U109: 0 | V109: 0.000 | W109: 0 | X109: 0.000 | Y109: 23.33 | Z109: 0.233 | AA109: 9895652 | AB109: 0.3 | AC109: MI | AD109: 51.0202 | AE109: Professional degree (doctoral level) | AF109: 18, 19
A110: Audiologists | B110: 2011 | C110: 27 | D110: Minnesota | E110: 4 | F110: 1 | G110: 3 | H110: 4 | I110: 0 | J110: 0 | K110: 0 | L110: 0 | M110: 25.00 | N110: 0.250 | O110: 75 | P110: 0.750 | Q110: 100 | R110: 1.000 | S110: 0 | T110: 0.000 | U110: 0 | V110: 0.000 | W110: 0 | X110: 0.000 | Y110: 0 | Z110: 0.000 | AA110: 5352946 | AB110: 0.07 | AC110: MN | AD110: 51.0202 | AE110: Professional degree (doctoral level) | AF110: 18, 19
A111: Audiologists | B111: 2011 | C111: 29 | D111: Missouri | E111: 241 | F111: 37 | G111: 204 | H111: 202 | I111: 2 | J111: 12 | K111: 6 | L111: 19 | M111: 15.35 | N111: 0.154 | O111: 84.65 | P111: 0.847 | Q111: 83.82 | R111: 0.838 | S111: 0.83 | T111: 0.008 | U111: 4.98 | V111: 0.050 | W111: 2.49 | X111: 0.025 | Y111: 7.88 | Z111: 0.079 | AA111: 6011574 | AB111: 4.01 | AC111: MO | AD111: 51.0202 | AE111: Professional degree (doctoral level) | AF111: 18, 19
A112: Audiologists | B112: 2011 | C112: 31 | D112: Nebraska | E112: 5 | F112: 1 | G112: 4 | H112: 2 | I112: 0 | J112: 0 | K112: 0 | L112: 3 | M112: 20.00 | N112: 0.200 | O112: 80 | P112: 0.800 | Q112: 40 | R112: 0.400 | S112: 0 | T112: 0.000 | U112: 0 | V112: 0.000 | W112: 0 | X112: 0.000 | Y112: 60 | Z112: 0.600 | AA112: 1843937 | AB112: 0.27 | AC112: NE | AD112: 51.0202 | AE112: Professional degree (doctoral level) | AF112: 18, 19
A113: Audiologists | B113: 2011 | C113: 34 | D113: New Jersey | E113: 5 | F113: 1 | G113: 4 | H113: 2 | I113: 0 | J113: 0 | K113: 0 | L113: 3 | M113: 20.00 | N113: 0.200 | O113: 80 | P113: 0.800 | Q113: 40 | R113: 0.400 | S113: 0 | T113: 0.000 | U113: 0 | V113: 0.000 | W113: 0 | X113: 0.000 | Y113: 60 | Z113: 0.600 | AA113: 8878245 | AB113: 0.06 | AC113: NJ | AD113: 51.0202 | AE113: Professional degree (doctoral level) | AF113: 18, 19
A114: Audiologists | B114: 2011 | C114: 36 | D114: New York | E114: 14 | F114: 0 | G114: 14 | H114: 13 | I114: 1 | J114: 0 | K114: 0 | L114: 0 | M114: 0.00 | N114: 0.000 | O114: 100 | P114: 1.000 | Q114: 92.86 | R114: 0.929 | S114: 7.14 | T114: 0.071 | U114: 0 | V114: 0.000 | W114: 0 | X114: 0.000 | Y114: 0 | Z114: 0.000 | AA114: 19602134 | AB114: 0.07 | AC114: NY | AD114: 51.0202 | AE114: Professional degree (doctoral level) | AF114: 18, 19
A115: Audiologists | B115: 2011 | C115: 37 | D115: North Carolina | E115: 10 | F115: 1 | G115: 9 | H115: 9 | I115: 0 | J115: 0 | K115: 1 | L115: 0 | M115: 10.00 | N115: 0.100 | O115: 90 | P115: 0.900 | Q115: 90 | R115: 0.900 | S115: 0 | T115: 0.000 | U115: 0 | V115: 0.000 | W115: 10 | X115: 0.100 | Y115: 0 | Z115: 0.000 | AA115: 9641131 | AB115: 0.1 | AC115: NC | AD115: 51.0202 | AE115: Professional degree (doctoral level) | AF115: 18, 19
A116: Audiologists | B116: 2011 | C116: 39 | D116: Ohio | E116: 16 | F116: 1 | G116: 15 | H116: 14 | I116: 0 | J116: 0 | K116: 0 | L116: 2 | M116: 6.25 | N116: 0.063 | O116: 93.75 | P116: 0.938 | Q116: 87.5 | R116: 0.875 | S116: 0 | T116: 0.000 | U116: 0 | V116: 0.000 | W116: 0 | X116: 0.000 | Y116: 12.5 | Z116: 0.125 | AA116: 11558178 | AB116: 0.14 | AC116: OH | AD116: 51.0202 | AE116: Professional degree (doctoral level) | AF116: 18, 19
A117: Audiologists | B117: 2011 | C117: 40 | D117: Oklahoma | E117: 3 | F117: 0 | G117: 3 | H117: 3 | I117: 0 | J117: 0 | K117: 0 | L117: 0 | M117: 0.00 | N117: 0.000 | O117: 100 | P117: 1.000 | Q117: 100 | R117: 1.000 | S117: 0 | T117: 0.000 | U117: 0 | V117: 0.000 | W117: 0 | X117: 0.000 | Y117: 0 | Z117: 0.000 | AA117: 3786536 | AB117: 0.08 | AC117: OK | AD117: 51.0202 | AE117: Professional degree (doctoral level) | AF117: 18, 19
A118: Audiologists | B118: 2011 | C118: 42 | D118: Pennsylvania | E118: 37 | F118: 9 | G118: 28 | H118: 27 | I118: 4 | J118: 4 | K118: 1 | L118: 1 | M118: 24.32 | N118: 0.243 | O118: 75.68 | P118: 0.757 | Q118: 72.97 | R118: 0.730 | S118: 10.81 | T118: 0.108 | U118: 10.81 | V118: 0.108 | W118: 2.7 | X118: 0.027 | Y118: 2.7 | Z118: 0.027 | AA118: 12773059 | AB118: 0.29 | AC118: PA | AD118: 51.0202 | AE118: Professional degree (doctoral level) | AF118: 18, 19
A119: Audiologists | B119: 2011 | C119: 46 | D119: South Dakota | E119: 5 | F119: 0 | G119: 5 | H119: 5 | I119: 0 | J119: 0 | K119: 0 | L119: 0 | M119: 0.00 | N119: 0.000 | O119: 100 | P119: 1.000 | Q119: 100 | R119: 1.000 | S119: 0 | T119: 0.000 | U119: 0 | V119: 0.000 | W119: 0 | X119: 0.000 | Y119: 0 | Z119: 0.000 | AA119: 823113 | AB119: 0.61 | AC119: SD | AD119: 51.0202 | AE119: Professional degree (doctoral level) | AF119: 18, 19
A120: Audiologists | B120: 2011 | C120: 47 | D120: Tennessee | E120: 9 | F120: 0 | G120: 9 | H120: 5 | I120: 0 | J120: 1 | K120: 1 | L120: 2 | M120: 0.00 | N120: 0.000 | O120: 100 | P120: 1.000 | Q120: 55.56 | R120: 0.556 | S120: 0 | T120: 0.000 | U120: 11.11 | V120: 0.111 | W120: 11.11 | X120: 0.111 | Y120: 22.22 | Z120: 0.222 | AA120: 6404657 | AB120: 0.14 | AC120: TN | AD120: 51.0202 | AE120: Professional degree (doctoral level) | AF120: 18, 19
A121: Audiologists | B121: 2011 | C121: 48 | D121: Texas | E121: 15 | F121: 4 | G121: 11 | H121: 9 | I121: 2 | J121: 2 | K121: 2 | L121: 0 | M121: 26.67 | N121: 0.267 | O121: 73.33 | P121: 0.733 | Q121: 60 | R121: 0.600 | S121: 13.33 | T121: 0.133 | U121: 13.33 | V121: 0.133 | W121: 13.33 | X121: 0.133 | Y121: 0 | Z121: 0.000 | AA121: 25627909 | AB121: 0.06 | AC121: TX | AD121: 51.0202 | AE121: Professional degree (doctoral level) | AF121: 18, 19
A122: Audiologists | B122: 2011 | C122: 49 | D122: Utah | E122: 11 | F122: 7 | G122: 4 | H122: 9 | I122: 0 | J122: 0 | K122: 0 | L122: 2 | M122: 63.64 | N122: 0.636 | O122: 36.36 | P122: 0.364 | Q122: 81.82 | R122: 0.818 | S122: 0 | T122: 0.000 | U122: 0 | V122: 0.000 | W122: 0 | X122: 0.000 | Y122: 18.18 | Z122: 0.182 | AA122: 2818798 | AB122: 0.39 | AC122: UT | AD122: 51.0202 | AE122: Professional degree (doctoral level) | AF122: 18, 19
A123: Audiologists | B123: 2011 | C123: 51 | D123: Virginia | E123: 3 | F123: 0 | G123: 3 | H123: 3 | I123: 0 | J123: 0 | K123: 0 | L123: 0 | M123: 0.00 | N123: 0.000 | O123: 100 | P123: 1.000 | Q123: 100 | R123: 1.000 | S123: 0 | T123: 0.000 | U123: 0 | V123: 0.000 | W123: 0 | X123: 0.000 | Y123: 0 | Z123: 0.000 | AA123: 8107953 | AB123: 0.04 | AC123: VA | AD123: 51.0202 | AE123: Professional degree (doctoral level) | AF123: 18, 19
A124: Audiologists | B124: 2011 | C124: 54 | D124: West Virginia | E124: 9 | F124: 1 | G124: 8 | H124: 8 | I124: 0 | J124: 0 | K124: 1 | L124: 0 | M124: 11.11 | N124: 0.111 | O124: 88.89 | P124: 0.889 | Q124: 88.89 | R124: 0.889 | S124: 0 | T124: 0.000 | U124: 0 | V124: 0.000 | W124: 11.11 | X124: 0.111 | Y124: 0 | Z124: 0.000 | AA124: 1857305 | AB124: 0.48 | AC124: WV | AD124: 51.0202 | AE124: Professional degree (doctoral level) | AF124: 18, 19
A125: Audiologists | B125: 2011 | C125: 55 | D125: Wisconsin | E125: 9 | F125: 0 | G125: 9 | H125: 8 | I125: 0 | J125: 1 | K125: 0 | L125: 0 | M125: 0.00 | N125: 0.000 | O125: 100 | P125: 1.000 | Q125: 88.89 | R125: 0.889 | S125: 0 | T125: 0.000 | U125: 11.11 | V125: 0.111 | W125: 0 | X125: 0.000 | Y125: 0 | Z125: 0.000 | AA125: 5713359 | AB125: 0.16 | AC125: WI | AD125: 51.0202 | AE125: Professional degree (doctoral level) | AF125: 18, 19
A126: Audiologists | B126: 2011 | C126: 72 | D126: Puerto Rico | E126: 3 | F126: 0 | G126: 3 | H126: 0 | I126: 0 | J126: 0 | K126: 3 | L126: 0 | M126: 0.00 | N126: 0.000 | O126: 100 | P126: 1.000 | Q126: 0 | R126: 0.000 | S126: 0 | T126: 0.000 | U126: 0 | V126: 0.000 | W126: 100 | X126: 1.000 | Y126: 0 | Z126: 0.000 | AA126: 3693464 | AB126: 0.08 | AC126: PR | AD126: 51.0202 | AE126: Professional degree (doctoral level) | AF126: 18, 19
A127: Audiologists | B127: 2012 | C127: 1 | D127: Alabama | E127: 6 | F127: 0 | G127: 6 | H127: 5 | I127: 0 | J127: 0 | K127: 0 | L127: 1 | M127: 0.00 | N127: 0.000 | O127: 100 | P127: 1.000 | Q127: 83.33 | R127: 0.833 | S127: 0 | T127: 0.000 | U127: 0 | V127: 0.000 | W127: 0 | X127: 0.000 | Y127: 16.67 | Z127: 0.167 | AA127: 4839947 | AB127: 0.12 | AC127: AL | AD127: 51.0202 | AE127: Professional degree (doctoral level) | AF127: 18, 19
A128: Audiologists | B128: 2012 | C128: 6 | D128: California | E128: 5 | F128: 0 | G128: 5 | H128: 4 | I128: 0 | J128: 0 | K128: 1 | L128: 0 | M128: 0.00 | N128: 0.000 | O128: 100 | P128: 1.000 | Q128: 80 | R128: 0.800 | S128: 0 | T128: 0.000 | U128: 0 | V128: 0.000 | W128: 20 | X128: 0.200 | Y128: 0 | Z128: 0.000 | AA128: 37971412 | AB128: 0.01 | AC128: CA | AD128: 51.0202 | AE128: Professional degree (doctoral level) | AF128: 18, 19
A129: Audiologists | B129: 2012 | C129: 8 | D129: Colorado | E129: 4 | F129: 1 | G129: 3 | H129: 3 | I129: 0 | J129: 1 | K129: 0 | L129: 0 | M129: 25.00 | N129: 0.250 | O129: 75 | P129: 0.750 | Q129: 75 | R129: 0.750 | S129: 0 | T129: 0.000 | U129: 25 | V129: 0.250 | W129: 0 | X129: 0.000 | Y129: 0 | Z129: 0.000 | AA129: 5188139 | AB129: 0.08 | AC129: CO | AD129: 51.0202 | AE129: Professional degree (doctoral level) | AF129: 18, 19
A130: Audiologists | B130: 2012 | C130: 9 | D130: Connecticut | E130: 5 | F130: 0 | G130: 5 | H130: 5 | I130: 0 | J130: 0 | K130: 0 | L130: 0 | M130: 0.00 | N130: 0.000 | O130: 100 | P130: 1.000 | Q130: 100 | R130: 1.000 | S130: 0 | T130: 0.000 | U130: 0 | V130: 0.000 | W130: 0 | X130: 0.000 | Y130: 0 | Z130: 0.000 | AA130: 3605215 | AB130: 0.14 | AC130: CT | AD130: 51.0202 | AE130: Professional degree (doctoral level) | AF130: 18, 19
A131: Audiologists | B131: 2012 | C131: 11 | D131: District of Columbia | E131: 8 | F131: 1 | G131: 7 | H131: 5 | I131: 0 | J131: 1 | K131: 1 | L131: 1 | M131: 12.50 | N131: =M131/100 -> 0.125 | O131: 87.5 | P131: =O131/100 -> 0.875 | Q131: 62.5 | R131: =Q131/100 -> 0.625 | S131: 0 | T131: =S131/100 -> 0.000 | U131: 12.5 | V131: =U131/100 -> 0.125 | W131: 12.5 | X131: =W131/100 -> 0.125 | Y131: 12.5 | Z131: =Y131/100 -> 0.125 | AA131: 630643 | AB131: 1.27 | AC131: DC | AD131: 51.0202 | AE131: Professional degree (doctoral level) | AF131: 18, 19
A132: Audiologists | B132: 2012 | C132: 12 | D132: Florida | E132: 60 | F132: 12 | G132: 48 | H132: 39 | I132: 6 | J132: 2 | K132: 2 | L132: 11 | M132: 20.00 | N132: 0.200 | O132: 80 | P132: 0.800 | Q132: 65 | R132: 0.650 | S132: 10 | T132: 0.100 | U132: 3.33 | V132: 0.033 | W132: 3.33 | X132: 0.033 | Y132: 18.33 | Z132: 0.183 | AA132: 19268256 | AB132: 0.31 | AC132: FL | AD132: 51.0202 | AE132: Professional degree (doctoral level) | AF132: 18, 19
A133: Audiologists | B133: 2012 | C133: 16 | D133: Idaho | E133: 7 | F133: 4 | G133: 3 | H133: 7 | I133: 0 | J133: 0 | K133: 0 | L133: 0 | M133: 57.14 | N133: 0.571 | O133: 42.86 | P133: 0.429 | Q133: 100 | R133: 1.000 | S133: 0 | T133: 0.000 | U133: 0 | V133: 0.000 | W133: 0 | X133: 0.000 | Y133: 0 | Z133: 0.000 | AA133: 1600611 | AB133: 0.44 | AC133: ID | AD133: 51.0202 | AE133: Professional degree (doctoral level) | AF133: 18, 19
A134: Audiologists | B134: 2012 | C134: 17 | D134: Illinois | E134: 12 | F134: 2 | G134: 10 | H134: 12 | I134: 0 | J134: 0 | K134: 0 | L134: 0 | M134: 16.67 | N134: 0.167 | O134: 83.33 | P134: 0.833 | Q134: 100 | R134: 1.000 | S134: 0 | T134: 0.000 | U134: 0 | V134: 0.000 | W134: 0 | X134: 0.000 | Y134: 0 | Z134: 0.000 | AA134: 12927420 | AB134: 0.09 | AC134: IL | AD134: 51.0202 | AE134: Professional degree (doctoral level) | AF134: 18, 19
A135: Audiologists | B135: 2012 | C135: 20 | D135: Kansas | E135: 10 | F135: 3 | G135: 7 | H135: 10 | I135: 0 | J135: 0 | K135: 0 | L135: 0 | M135: 30.00 | N135: 0.300 | O135: 70 | P135: 0.700 | Q135: 100 | R135: 1.000 | S135: 0 | T135: 0.000 | U135: 0 | V135: 0.000 | W135: 0 | X135: 0.000 | Y135: 0 | Z135: 0.000 | AA135: 2891164 | AB135: 0.35 | AC135: KS | AD135: 51.0202 | AE135: Professional degree (doctoral level) | AF135: 18, 19
A136: Audiologists | B136: 2012 | C136: 22 | D136: Louisiana | E136: 19 | F136: 0 | G136: 19 | H136: 17 | I136: 1 | J136: 0 | K136: 0 | L136: 1 | M136: 0.00 | N136: 0.000 | O136: 100 | P136: 1.000 | Q136: 89.47 | R136: 0.895 | S136: 5.26 | T136: 0.053 | U136: 0 | V136: 0.000 | W136: 0 | X136: 0.000 | Y136: 5.26 | Z136: 0.053 | AA136: 4603590 | AB136: 0.41 | AC136: LA | AD136: 51.0202 | AE136: Professional degree (doctoral level) | AF136: 18, 19
A137: Audiologists | B137: 2012 | C137: 24 | D137: Maryland | E137: 4 | F137: 0 | G137: 4 | H137: 3 | I137: 0 | J137: 0 | K137: 0 | L137: 1 | M137: 0.00 | N137: 0.000 | O137: 100 | P137: 1.000 | Q137: 75 | R137: 0.750 | S137: 0 | T137: 0.000 | U137: 0 | V137: 0.000 | W137: 0 | X137: 0.000 | Y137: 25 | Z137: 0.250 | AA137: 5914854 | AB137: 0.07 | AC137: MD | AD137: 51.0202 | AE137: Professional degree (doctoral level) | AF137: 18, 19
A138: Audiologists | B138: 2012 | C138: 25 | D138: Massachusetts | E138: 15 | F138: 2 | G138: 13 | H138: 9 | I138: 0 | J138: 1 | K138: 1 | L138: 4 | M138: 13.33 | N138: 0.133 | O138: 86.67 | P138: 0.867 | Q138: 60 | R138: 0.600 | S138: 0 | T138: 0.000 | U138: 6.67 | V138: 0.067 | W138: 6.67 | X138: 0.067 | Y138: 26.67 | Z138: 0.267 | AA138: 6693932 | AB138: 0.22 | AC138: MA | AD138: 51.0202 | AE138: Professional degree (doctoral level) | AF138: 18, 19
A139: Audiologists | B139: 2012 | C139: 26 | D139: Michigan | E139: 20 | F139: 2 | G139: 18 | H139: 19 | I139: 0 | J139: 1 | K139: 0 | L139: 0 | M139: 10.00 | N139: 0.100 | O139: 90 | P139: 0.900 | Q139: 95 | R139: 0.950 | S139: 0 | T139: 0.000 | U139: 5 | V139: 0.050 | W139: 0 | X139: 0.000 | Y139: 0 | Z139: 0.000 | AA139: 9921001 | AB139: 0.2 | AC139: MI | AD139: 51.0202 | AE139: Professional degree (doctoral level) | AF139: 18, 19
A140: Audiologists | B140: 2012 | C140: 27 | D140: Minnesota | E140: 6 | F140: 2 | G140: 4 | H140: 6 | I140: 0 | J140: 0 | K140: 0 | L140: 0 | M140: 33.33 | N140: 0.333 | O140: 66.67 | P140: 0.667 | Q140: 100 | R140: 1.000 | S140: 0 | T140: 0.000 | U140: 0 | V140: 0.000 | W140: 0 | X140: 0.000 | Y140: 0 | Z140: 0.000 | AA140: 5388902 | AB140: 0.11 | AC140: MN | AD140: 51.0202 | AE140: Professional degree (doctoral level) | AF140: 18, 19
A141: Audiologists | B141: 2012 | C141: 29 | D141: Missouri | E141: 181 | F141: 28 | G141: 153 | H141: 152 | I141: 6 | J141: 5 | K141: 8 | L141: 10 | M141: 15.47 | N141: 0.155 | O141: 84.53 | P141: 0.845 | Q141: 83.98 | R141: 0.840 | S141: 3.31 | T141: 0.033 | U141: 2.76 | V141: 0.028 | W141: 4.42 | X141: 0.044 | Y141: 5.52 | Z141: 0.055 | AA141: 6026733 | AB141: 3 | AC141: MO | AD141: 51.0202 | AE141: Professional degree (doctoral level) | AF141: 18, 19
A142: Audiologists | B142: 2012 | C142: 31 | D142: Nebraska | E142: 4 | F142: 1 | G142: 3 | H142: 4 | I142: 0 | J142: 0 | K142: 0 | L142: 0 | M142: 25.00 | N142: 0.250 | O142: 75 | P142: 0.750 | Q142: 100 | R142: 1.000 | S142: 0 | T142: 0.000 | U142: 0 | V142: 0.000 | W142: 0 | X142: 0.000 | Y142: 0 | Z142: 0.000 | AA142: 1859140 | AB142: 0.22 | AC142: NE | AD142: 51.0202 | AE142: Professional degree (doctoral level) | AF142: 18, 19
A143: Audiologists | B143: 2012 | C143: 34 | D143: New Jersey | E143: 9 | F143: 0 | G143: 9 | H143: 7 | I143: 0 | J143: 0 | K143: 1 | L143: 1 | M143: 0.00 | N143: 0.000 | O143: 100 | P143: 1.000 | Q143: 77.78 | R143: 0.778 | S143: 0 | T143: 0.000 | U143: 0 | V143: 0.000 | W143: 11.11 | X143: 0.111 | Y143: 11.11 | Z143: 0.111 | AA143: 8935248 | AB143: 0.1 | AC143: NJ | AD143: 51.0202 | AE143: Professional degree (doctoral level) | AF143: 18, 19
A144: Audiologists | B144: 2012 | C144: 36 | D144: New York | E144: 18 | F144: 0 | G144: 18 | H144: 15 | I144: 0 | J144: 1 | K144: 1 | L144: 1 | M144: 0.00 | N144: 0.000 | O144: 100 | P144: 1.000 | Q144: 83.33 | R144: 0.833 | S144: 0 | T144: 0.000 | U144: 5.56 | V144: 0.056 | W144: 5.56 | X144: 0.056 | Y144: 5.56 | Z144: 0.056 | AA144: 19758616 | AB144: 0.09 | AC144: NY | AD144: 51.0202 | AE144: Professional degree (doctoral level) | AF144: 18, 19
A145: Audiologists | B145: 2012 | C145: 37 | D145: North Carolina | E145: 9 | F145: 0 | G145: 9 | H145: 9 | I145: 0 | J145: 0 | K145: 0 | L145: 0 | M145: 0.00 | N145: 0.000 | O145: 100 | P145: 1.000 | Q145: 100 | R145: 1.000 | S145: 0 | T145: 0.000 | U145: 0 | V145: 0.000 | W145: 0 | X145: 0.000 | Y145: 0 | Z145: 0.000 | AA145: 9719755 | AB145: 0.09 | AC145: NC | AD145: 51.0202 | AE145: Professional degree (doctoral level) | AF145: 18, 19
A146: Audiologists | B146: 2012 | C146: 39 | D146: Ohio | E146: 17 | F146: 3 | G146: 14 | H146: 16 | I146: 0 | J146: 0 | K146: 0 | L146: 1 | M146: 17.65 | N146: 0.177 | O146: 82.35 | P146: 0.824 | Q146: 94.12 | R146: 0.941 | S146: 0 | T146: 0.000 | U146: 0 | V146: 0.000 | W146: 0 | X146: 0.000 | Y146: 5.88 | Z146: 0.059 | AA146: 11573400 | AB146: 0.15 | AC146: OH | AD146: 51.0202 | AE146: Professional degree (doctoral level) | AF146: 18, 19
A147: Audiologists | B147: 2012 | C147: 40 | D147: Oklahoma | E147: 6 | F147: 0 | G147: 6 | H147: 5 | I147: 0 | J147: 0 | K147: 0 | L147: 1 | M147: 0.00 | N147: 0.000 | O147: 100 | P147: 1.000 | Q147: 83.33 | R147: 0.833 | S147: 0 | T147: 0.000 | U147: 0 | V147: 0.000 | W147: 0 | X147: 0.000 | Y147: 16.67 | Z147: 0.167 | AA147: 3815196 | AB147: 0.16 | AC147: OK | AD147: 51.0202 | AE147: Professional degree (doctoral level) | AF147: 18, 19
A148: Audiologists | B148: 2012 | C148: 42 | D148: Pennsylvania | E148: 23 | F148: 4 | G148: 19 | H148: 15 | I148: 4 | J148: 2 | K148: 1 | L148: 1 | M148: 17.39 | N148: 0.174 | O148: 82.61 | P148: 0.826 | Q148: 65.22 | R148: 0.652 | S148: 17.39 | T148: 0.174 | U148: 8.7 | V148: 0.087 | W148: 4.35 | X148: 0.044 | Y148: 4.35 | Z148: 0.044 | AA148: 12816003 | AB148: 0.18 | AC148: PA | AD148: 51.0202 | AE148: Professional degree (doctoral level) | AF148: 18, 19
A149: Audiologists | B149: 2012 | C149: 46 | D149: South Dakota | E149: 2 | F149: 0 | G149: 2 | H149: 2 | I149: 0 | J149: 0 | K149: 0 | L149: 0 | M149: 0.00 | N149: 0.000 | O149: 100 | P149: 1.000 | Q149: 100 | R149: 1.000 | S149: 0 | T149: 0.000 | U149: 0 | V149: 0.000 | W149: 0 | X149: 0.000 | Y149: 0 | Z149: 0.000 | AA149: 832730 | AB149: 0.24 | AC149: SD | AD149: 51.0202 | AE149: Professional degree (doctoral level) | AF149: 18, 19
A150: Audiologists | B150: 2012 | C150: 47 | D150: Tennessee | E150: 10 | F150: 2 | G150: 8 | H150: 9 | I150: 1 | J150: 0 | K150: 0 | L150: 0 | M150: 20.00 | N150: 0.200 | O150: 80 | P150: 0.800 | Q150: 90 | R150: 0.900 | S150: 10 | T150: 0.100 | U150: 0 | V150: 0.000 | W150: 0 | X150: 0.000 | Y150: 0 | Z150: 0.000 | AA150: 6463610 | AB150: 0.15 | AC150: TN | AD150: 51.0202 | AE150: Professional degree (doctoral level) | AF150: 18, 19
A151: Audiologists | B151: 2012 | C151: 48 | D151: Texas | E151: 39 | F151: 8 | G151: 31 | H151: 29 | I151: 2 | J151: 0 | K151: 6 | L151: 2 | M151: 20.51 | N151: 0.205 | O151: 79.49 | P151: 0.795 | Q151: 74.36 | R151: 0.744 | S151: 5.13 | T151: 0.051 | U151: 0 | V151: 0.000 | W151: 15.38 | X151: 0.154 | Y151: 5.13 | Z151: 0.051 | AA151: 26052403 | AB151: 0.15 | AC151: TX | AD151: 51.0202 | AE151: Professional degree (doctoral level) | AF151: 18, 19
A152: Audiologists | B152: 2012 | C152: 49 | D152: Utah | E152: 11 | F152: 6 | G152: 5 | H152: 10 | I152: 0 | J152: 1 | K152: 0 | L152: 0 | M152: 54.55 | N152: 0.546 | O152: 45.45 | P152: 0.455 | Q152: 90.91 | R152: 0.909 | S152: 0 | T152: 0.000 | U152: 9.09 | V152: 0.091 | W152: 0 | X152: 0.000 | Y152: 0 | Z152: 0.000 | AA152: 2861360 | AB152: 0.38 | AC152: UT | AD152: 51.0202 | AE152: Professional degree (doctoral level) | AF152: 18, 19
A153: Audiologists | B153: 2012 | C153: 51 | D153: Virginia | E153: 5 | F153: 1 | G153: 4 | H153: 5 | I153: 0 | J153: 0 | K153: 0 | L153: 0 | M153: 20.00 | N153: 0.200 | O153: 80 | P153: 0.800 | Q153: 100 | R153: 1.000 | S153: 0 | T153: 0.000 | U153: 0 | V153: 0.000 | W153: 0 | X153: 0.000 | Y153: 0 | Z153: 0.000 | AA153: 8197400 | AB153: 0.06 | AC153: VA | AD153: 51.0202 | AE153: Professional degree (doctoral level) | AF153: 18, 19
A154: Audiologists | B154: 2012 | C154: 54 | D154: West Virginia | E154: 8 | F154: 0 | G154: 8 | H154: 8 | I154: 0 | J154: 0 | K154: 0 | L154: 0 | M154: 0.00 | N154: 0.000 | O154: 100 | P154: 1.000 | Q154: 100 | R154: 1.000 | S154: 0 | T154: 0.000 | U154: 0 | V154: 0.000 | W154: 0 | X154: 0.000 | Y154: 0 | Z154: 0.000 | AA154: 1858706 | AB154: 0.43 | AC154: WV | AD154: 51.0202 | AE154: Professional degree (doctoral level) | AF154: 18, 19
A155: Audiologists | B155: 2012 | C155: 55 | D155: Wisconsin | E155: 15 | F155: 3 | G155: 12 | H155: 15 | I155: 0 | J155: 0 | K155: 0 | L155: 0 | M155: 20.00 | N155: 0.200 | O155: 80 | P155: 0.800 | Q155: 100 | R155: 1.000 | S155: 0 | T155: 0.000 | U155: 0 | V155: 0.000 | W155: 0 | X155: 0.000 | Y155: 0 | Z155: 0.000 | AA155: 5734379 | AB155: 0.26 | AC155: WI | AD155: 51.0202 | AE155: Professional degree (doctoral level) | AF155: 18, 19
A156: Audiologists | B156: 2012 | C156: 72 | D156: Puerto Rico | E156: 6 | F156: 2 | G156: 4 | H156: 0 | I156: 0 | J156: 0 | K156: 6 | L156: 0 | M156: 33.33 | N156: 0.333 | O156: 66.67 | P156: 0.667 | Q156: 0 | R156: 0.000 | S156: 0 | T156: 0.000 | U156: 0 | V156: 0.000 | W156: 100 | X156: 1.000 | Y156: 0 | Z156: 0.000 | AA156: 3661045 | AB156: 0.16 | AC156: PR | AD156: 51.0202 | AE156: Professional degree (doctoral level) | AF156: 18, 19
A157: Audiologists | B157: 2013 | C157: 1 | D157: Alabama | E157: 5 | F157: 0 | G157: 5 | H157: 5 | I157: 0 | J157: 0 | K157: 0 | L157: 0 | M157: 0.00 | N157: 0.000 | O157: 100 | P157: 1.000 | Q157: 100 | R157: 1.000 | S157: 0 | T157: 0.000 | U157: 0 | V157: 0.000 | W157: 0 | X157: 0.000 | Y157: 0 | Z157: 0.000 | AA157: 4865253 | AB157: 0.1 | AC157: AL | AD157: 51.0202 | AE157: Professional degree (doctoral level) | AF157: 18, 19
A158: Audiologists | B158: 2013 | C158: 6 | D158: California | E158: 6 | F158: 0 | G158: 6 | H158: 2 | I158: 0 | J158: 2 | K158: 1 | L158: 1 | M158: 0.00 | N158: 0.000 | O158: 100 | P158: 1.000 | Q158: 33.33 | R158: 0.333 | S158: 0 | T158: 0.000 | U158: 33.33 | V158: 0.333 | W158: 16.67 | X158: 0.167 | Y158: 16.67 | Z158: 0.167 | AA158: 38292557 | AB158: 0.02 | AC158: CA | AD158: 51.0202 | AE158: Professional degree (doctoral level) | AF158: 18, 19
A159: Audiologists | B159: 2013 | C159: 8 | D159: Colorado | E159: 8 | F159: 2 | G159: 6 | H159: 7 | I159: 0 | J159: 0 | K159: 0 | L159: 1 | M159: 25.00 | N159: 0.250 | O159: 75 | P159: 0.750 | Q159: 87.5 | R159: 0.875 | S159: 0 | T159: 0.000 | U159: 0 | V159: 0.000 | W159: 0 | X159: 0.000 | Y159: 12.5 | Z159: 0.125 | AA159: 5262801 | AB159: 0.15 | AC159: CO | AD159: 51.0202 | AE159: Professional degree (doctoral level) | AF159: 18, 19
A160: Audiologists | B160: 2013 | C160: 9 | D160: Connecticut | E160: 5 | F160: 2 | G160: 3 | H160: 4 | I160: 0 | J160: 0 | K160: 0 | L160: 1 | M160: 40.00 | N160: 0.400 | O160: 60 | P160: 0.600 | Q160: 80 | R160: 0.800 | S160: 0 | T160: 0.000 | U160: 0 | V160: 0.000 | W160: 0 | X160: 0.000 | Y160: 20 | Z160: 0.200 | AA160: 3610238 | AB160: 0.14 | AC160: CT | AD160: 51.0202 | AE160: Professional degree (doctoral level) | AF160: 18, 19
A161: Audiologists | B161: 2013 | C161: 11 | D161: District of Columbia | E161: 14 | F161: 3 | G161: 11 | H161: 12 | I161: 0 | J161: 0 | K161: 1 | L161: 1 | M161: 21.43 | N161: 0.214 | O161: 78.57 | P161: 0.786 | Q161: 85.71 | R161: 0.857 | S161: 0 | T161: 0.000 | U161: 0 | V161: 0.000 | W161: 7.14 | X161: 0.071 | Y161: 7.14 | Z161: 0.071 | AA161: 644203 | AB161: 2.17 | AC161: DC | AD161: 51.0202 | AE161: Professional degree (doctoral level) | AF161: 18, 19
A162: Audiologists | B162: 2013 | C162: 12 | D162: Florida | E162: 67 | F162: 8 | G162: 59 | H162: 42 | I162: 4 | J162: 0 | K162: 6 | L162: 15 | M162: 11.94 | N162: 0.119 | O162: 88.06 | P162: 0.881 | Q162: 62.69 | R162: 0.627 | S162: 5.97 | T162: 0.060 | U162: 0 | V162: 0.000 | W162: 8.96 | X162: 0.090 | Y162: 22.39 | Z162: 0.224 | AA162: 19502928 | AB162: 0.34 | AC162: FL | AD162: 51.0202 | AE162: Professional degree (doctoral level) | AF162: 18, 19
A163: Audiologists | B163: 2013 | C163: 16 | D163: Idaho | E163: 5 | F163: 2 | G163: 3 | H163: 5 | I163: 0 | J163: 0 | K163: 0 | L163: 0 | M163: 40.00 | N163: 0.400 | O163: 60 | P163: 0.600 | Q163: 100 | R163: 1.000 | S163: 0 | T163: 0.000 | U163: 0 | V163: 0.000 | W163: 0 | X163: 0.000 | Y163: 0 | Z163: 0.000 | AA163: 1618841 | AB163: 0.31 | AC163: ID | AD163: 51.0202 | AE163: Professional degree (doctoral level) | AF163: 18, 19
A164: Audiologists | B164: 2013 | C164: 17 | D164: Illinois | E164: 19 | F164: 4 | G164: 15 | H164: 12 | I164: 0 | J164: 1 | K164: 2 | L164: 4 | M164: 21.05 | N164: 0.211 | O164: 78.95 | P164: 0.790 | Q164: 63.16 | R164: 0.632 | S164: 0 | T164: 0.000 | U164: 5.26 | V164: 0.053 | W164: 10.53 | X164: 0.105 | Y164: 21.05 | Z164: 0.211 | AA164: 12959880 | AB164: 0.15 | AC164: IL | AD164: 51.0202 | AE164: Professional degree (doctoral level) | AF164: 18, 19
A165: Audiologists | B165: 2013 | C165: 20 | D165: Kansas | E165: 9 | F165: 0 | G165: 9 | H165: 8 | I165: 1 | J165: 0 | K165: 0 | L165: 0 | M165: 0.00 | N165: 0.000 | O165: 100 | P165: 1.000 | Q165: 88.89 | R165: 0.889 | S165: 11.11 | T165: 0.111 | U165: 0 | V165: 0.000 | W165: 0 | X165: 0.000 | Y165: 0 | Z165: 0.000 | AA165: 2901727 | AB165: 0.31 | AC165: KS | AD165: 51.0202 | AE165: Professional degree (doctoral level) | AF165: 18, 19
A166: Audiologists | B166: 2013 | C166: 22 | D166: Louisiana | E166: 13 | F166: 0 | G166: 13 | H166: 9 | I166: 2 | J166: 1 | K166: 0 | L166: 1 | M166: 0.00 | N166: 0.000 | O166: 100 | P166: 1.000 | Q166: 69.23 | R166: 0.692 | S166: 15.38 | T166: 0.154 | U166: 7.69 | V166: 0.077 | W166: 0 | X166: 0.000 | Y166: 7.69 | Z166: 0.077 | AA166: 4628239 | AB166: 0.28 | AC166: LA | AD166: 51.0202 | AE166: Professional degree (doctoral level) | AF166: 18, 19
A167: Audiologists | B167: 2013 | C167: 24 | D167: Maryland | E167: 5 | F167: 3 | G167: 2 | H167: 3 | I167: 0 | J167: 2 | K167: 0 | L167: 0 | M167: 60.00 | N167: 0.600 | O167: 40 | P167: 0.400 | Q167: 60 | R167: 0.600 | S167: 0 | T167: 0.000 | U167: 40 | V167: 0.400 | W167: 0 | X167: 0.000 | Y167: 0 | Z167: 0.000 | AA167: 5963434 | AB167: 0.08 | AC167: MD | AD167: 51.0202 | AE167: Professional degree (doctoral level) | AF167: 18, 19
A168: Audiologists | B168: 2013 | C168: 25 | D168: Massachusetts | E168: 15 | F168: 0 | G168: 15 | H168: 14 | I168: 0 | J168: 0 | K168: 0 | L168: 1 | M168: 0.00 | N168: 0.000 | O168: 100 | P168: 1.000 | Q168: 93.33 | R168: 0.933 | S168: 0 | T168: 0.000 | U168: 0 | V168: 0.000 | W168: 0 | X168: 0.000 | Y168: 6.67 | Z168: 0.067 | AA168: 6757991 | AB168: 0.22 | AC168: MA | AD168: 51.0202 | AE168: Professional degree (doctoral level) | AF168: 18, 19
A169: Audiologists | B169: 2013 | C169: 26 | D169: Michigan | E169: 13 | F169: 3 | G169: 10 | H169: 9 | I169: 0 | J169: 1 | K169: 0 | L169: 3 | M169: 23.08 | N169: 0.231 | O169: 76.92 | P169: 0.769 | Q169: 69.23 | R169: 0.692 | S169: 0 | T169: 0.000 | U169: 7.69 | V169: 0.077 | W169: 0 | X169: 0.000 | Y169: 23.08 | Z169: 0.231 | AA169: 9947598 | AB169: 0.13 | AC169: MI | AD169: 51.0202 | AE169: Professional degree (doctoral level) | AF169: 18, 19
A170: Audiologists | B170: 2013 | C170: 27 | D170: Minnesota | E170: 7 | F170: 1 | G170: 6 | H170: 7 | I170: 0 | J170: 0 | K170: 0 | L170: 0 | M170: 14.29 | N170: 0.143 | O170: 85.71 | P170: 0.857 | Q170: 100 | R170: 1.000 | S170: 0 | T170: 0.000 | U170: 0 | V170: 0.000 | W170: 0 | X170: 0.000 | Y170: 0 | Z170: 0.000 | AA170: 5431187 | AB170: 0.13 | AC170: MN | AD170: 51.0202 | AE170: Professional degree (doctoral level) | AF170: 18, 19
A171: Audiologists | B171: 2013 | C171: 29 | D171: Missouri | E171: 130 | F171: 17 | G171: 113 | H171: 107 | I171: 1 | J171: 10 | K171: 3 | L171: 9 | M171: 13.08 | N171: 0.131 | O171: 86.92 | P171: 0.869 | Q171: 82.31 | R171: 0.823 | S171: 0.77 | T171: 0.008 | U171: 7.69 | V171: 0.077 | W171: 2.31 | X171: 0.023 | Y171: 6.92 | Z171: 0.069 | AA171: 6044008 | AB171: 2.15 | AC171: MO | AD171: 51.0202 | AE171: Professional degree (doctoral level) | AF171: 18, 19
A172: Audiologists | B172: 2013 | C172: 31 | D172: Nebraska | E172: 8 | F172: 1 | G172: 7 | H172: 8 | I172: 0 | J172: 0 | K172: 0 | L172: 0 | M172: 12.50 | N172: 0.125 | O172: 87.5 | P172: 0.875 | Q172: 100 | R172: 1.000 | S172: 0 | T172: 0.000 | U172: 0 | V172: 0.000 | W172: 0 | X172: 0.000 | Y172: 0 | Z172: 0.000 | AA172: 1873681 | AB172: 0.43 | AC172: NE | AD172: 51.0202 | AE172: Professional degree (doctoral level) | AF172: 18, 19
A173: Audiologists | B173: 2013 | C173: 34 | D173: New Jersey | E173: 4 | F173: 0 | G173: 4 | H173: 3 | I173: 0 | J173: 0 | K173: 1 | L173: 0 | M173: 0.00 | N173: 0.000 | O173: 100 | P173: 1.000 | Q173: 75 | R173: 0.750 | S173: 0 | T173: 0.000 | U173: 0 | V173: 0.000 | W173: 25 | X173: 0.250 | Y173: 0 | Z173: 0.000 | AA173: 8987175 | AB173: 0.04 | AC173: NJ | AD173: 51.0202 | AE173: Professional degree (doctoral level) | AF173: 18, 19
A174: Audiologists | B174: 2013 | C174: 36 | D174: New York | E174: 17 | F174: 2 | G174: 15 | H174: 17 | I174: 0 | J174: 0 | K174: 0 | L174: 0 | M174: 11.76 | N174: 0.118 | O174: 88.24 | P174: 0.882 | Q174: 100 | R174: 1.000 | S174: 0 | T174: 0.000 | U174: 0 | V174: 0.000 | W174: 0 | X174: 0.000 | Y174: 0 | Z174: 0.000 | AA174: 19892558 | AB174: 0.09 | AC174: NY | AD174: 51.0202 | AE174: Professional degree (doctoral level) | AF174: 18, 19
A175: Audiologists | B175: 2013 | C175: 37 | D175: North Carolina | E175: 10 | F175: 1 | G175: 9 | H175: 8 | I175: 0 | J175: 0 | K175: 2 | L175: 0 | M175: 10.00 | N175: 0.100 | O175: 90 | P175: 0.900 | Q175: 80 | R175: 0.800 | S175: 0 | T175: 0.000 | U175: 0 | V175: 0.000 | W175: 20 | X175: 0.200 | Y175: 0 | Z175: 0.000 | AA175: 9800429 | AB175: 0.1 | AC175: NC | AD175: 51.0202 | AE175: Professional degree (doctoral level) | AF175: 18, 19
A176: Audiologists | B176: 2013 | C176: 39 | D176: Ohio | E176: 23 | F176: 3 | G176: 20 | H176: 18 | I176: 0 | J176: 1 | K176: 0 | L176: 4 | M176: 13.04 | N176: 0.130 | O176: 86.96 | P176: 0.870 | Q176: 78.26 | R176: 0.783 | S176: 0 | T176: 0.000 | U176: 4.35 | V176: 0.044 | W176: 0 | X176: 0.000 | Y176: 17.39 | Z176: 0.174 | AA176: 11612081 | AB176: 0.2 | AC176: OH | AD176: 51.0202 | AE176: Professional degree (doctoral level) | AF176: 18, 19
A177: Audiologists | B177: 2013 | C177: 40 | D177: Oklahoma | E177: 2 | F177: 0 | G177: 2 | H177: 2 | I177: 0 | J177: 0 | K177: 0 | L177: 0 | M177: 0.00 | N177: 0.000 | O177: 100 | P177: 1.000 | Q177: 100 | R177: 1.000 | S177: 0 | T177: 0.000 | U177: 0 | V177: 0.000 | W177: 0 | X177: 0.000 | Y177: 0 | Z177: 0.000 | AA177: 3847936 | AB177: 0.05 | AC177: OK | AD177: 51.0202 | AE177: Professional degree (doctoral level) | AF177: 18, 19
A178: Audiologists | B178: 2013 | C178: 42 | D178: Pennsylvania | E178: 25 | F178: 6 | G178: 19 | H178: 19 | I178: 2 | J178: 1 | K178: 2 | L178: 1 | M178: 24.00 | N178: 0.240 | O178: 76 | P178: 0.760 | Q178: 76 | R178: 0.760 | S178: 8 | T178: 0.080 | U178: 4 | V178: 0.040 | W178: 8 | X178: 0.080 | Y178: 4 | Z178: 0.040 | AA178: 12847236 | AB178: 0.19 | AC178: PA | AD178: 51.0202 | AE178: Professional degree (doctoral level) | AF178: 18, 19
A179: Audiologists | B179: 2013 | C179: 46 | D179: South Dakota | E179: 3 | F179: 0 | G179: 3 | H179: 3 | I179: 0 | J179: 0 | K179: 0 | L179: 0 | M179: 0.00 | N179: 0.000 | O179: 100 | P179: 1.000 | Q179: 100 | R179: 1.000 | S179: 0 | T179: 0.000 | U179: 0 | V179: 0.000 | W179: 0 | X179: 0.000 | Y179: 0 | Z179: 0.000 | AA179: 841120 | AB179: 0.36 | AC179: SD | AD179: 51.0202 | AE179: Professional degree (doctoral level) | AF179: 18, 19
A180: Audiologists | B180: 2013 | C180: 47 | D180: Tennessee | E180: 11 | F180: 2 | G180: 9 | H180: 8 | I180: 0 | J180: 2 | K180: 0 | L180: 1 | M180: 18.18 | N180: 0.182 | O180: 81.82 | P180: 0.818 | Q180: 72.73 | R180: 0.727 | S180: 0 | T180: 0.000 | U180: 18.18 | V180: 0.182 | W180: 0 | X180: 0.000 | Y180: 9.09 | Z180: 0.091 | AA180: 6508290 | AB180: 0.17 | AC180: TN | AD180: 51.0202 | AE180: Professional degree (doctoral level) | AF180: 18, 19
A181: Audiologists | B181: 2013 | C181: 48 | D181: Texas | E181: 38 | F181: 10 | G181: 28 | H181: 30 | I181: 0 | J181: 2 | K181: 4 | L181: 2 | M181: 26.32 | N181: 0.263 | O181: 73.68 | P181: 0.737 | Q181: 78.95 | R181: 0.790 | S181: 0 | T181: 0.000 | U181: 5.26 | V181: 0.053 | W181: 10.53 | X181: 0.105 | Y181: 5.26 | Z181: 0.053 | AA181: 26433846 | AB181: 0.14 | AC181: TX | AD181: 51.0202 | AE181: Professional degree (doctoral level) | AF181: 18, 19
A182: Audiologists | B182: 2013 | C182: 49 | D182: Utah | E182: 13 | F182: 5 | G182: 8 | H182: 11 | I182: 0 | J182: 1 | K182: 0 | L182: 1 | M182: 38.46 | N182: 0.385 | O182: 61.54 | P182: 0.615 | Q182: 84.62 | R182: 0.846 | S182: 0 | T182: 0.000 | U182: 7.69 | V182: 0.077 | W182: 0 | X182: 0.000 | Y182: 7.69 | Z182: 0.077 | AA182: 2909190 | AB182: 0.45 | AC182: UT | AD182: 51.0202 | AE182: Professional degree (doctoral level) | AF182: 18, 19
A183: Audiologists | B183: 2013 | C183: 51 | D183: Virginia | E183: 7 | F183: 0 | G183: 7 | H183: 5 | I183: 1 | J183: 0 | K183: 0 | L183: 1 | M183: 0.00 | N183: 0.000 | O183: 100 | P183: 1.000 | Q183: 71.43 | R183: 0.714 | S183: 14.29 | T183: 0.143 | U183: 0 | V183: 0.000 | W183: 0 | X183: 0.000 | Y183: 14.29 | Z183: 0.143 | AA183: 8270221 | AB183: 0.08 | AC183: VA | AD183: 51.0202 | AE183: Professional degree (doctoral level) | AF183: 18, 19
A184: Audiologists | B184: 2013 | C184: 54 | D184: West Virginia | E184: 4 | F184: 0 | G184: 4 | H184: 4 | I184: 0 | J184: 0 | K184: 0 | L184: 0 | M184: 0.00 | N184: 0.000 | O184: 100 | P184: 1.000 | Q184: 100 | R184: 1.000 | S184: 0 | T184: 0.000 | U184: 0 | V184: 0.000 | W184: 0 | X184: 0.000 | Y184: 0 | Z184: 0.000 | AA184: 1856588 | AB184: 0.22 | AC184: WV | AD184: 51.0202 | AE184: Professional degree (doctoral level) | AF184: 18, 19
A185: Audiologists | B185: 2013 | C185: 55 | D185: Wisconsin | E185: 7 | F185: 1 | G185: 6 | H185: 7 | I185: 0 | J185: 0 | K185: 0 | L185: 0 | M185: 14.29 | N185: 0.143 | O185: 85.71 | P185: 0.857 | Q185: 100 | R185: 1.000 | S185: 0 | T185: 0.000 | U185: 0 | V185: 0.000 | W185: 0 | X185: 0.000 | Y185: 0 | Z185: 0.000 | AA185: 5757584 | AB185: 0.12 | AC185: WI | AD185: 51.0202 | AE185: Professional degree (doctoral level) | AF185: 18, 19
A186: Audiologists | B186: 2013 | C186: 72 | D186: Puerto Rico | E186: 3 | F186: 0 | G186: 3 | H186: 0 | I186: 0 | J186: 0 | K186: 3 | L186: 0 | M186: 0.00 | N186: 0.000 | O186: 100 | P186: 1.000 | Q186: 0 | R186: 0.000 | S186: 0 | T186: 0.000 | U186: 0 | V186: 0.000 | W186: 100 | X186: 1.000 | Y186: 0 | Z186: 0.000 | AA186: 3631427 | AB186: 0.08 | AC186: PR | AD186: 51.0202 | AE186: Professional degree (doctoral level) | AF186: 18, 19
A187: Audiologists | B187: 2014 | C187: 1 | D187: Alabama | E187: 8 | F187: 0 | G187: 8 | H187: 8 | I187: 0 | J187: 0 | K187: 0 | L187: 0 | M187: 0.00 | N187: 0.000 | O187: 100 | P187: 1.000 | Q187: 100 | R187: 1.000 | S187: 0 | T187: 0.000 | U187: 0 | V187: 0.000 | W187: 0 | X187: 0.000 | Y187: 0 | Z187: 0.000 | AA187: 4887757 | AB187: 0.16 | AC187: AL | AD187: 51.0202 | AE187: Professional degree (doctoral level) | AF187: 18, 19
A188: Audiologists | B188: 2014 | C188: 6 | D188: California | E188: 13 | F188: 2 | G188: 11 | H188: 11 | I188: 1 | J188: 1 | K188: 0 | L188: 0 | M188: 15.38 | N188: 0.154 | O188: 84.62 | P188: 0.846 | Q188: 84.62 | R188: 0.846 | S188: 7.69 | T188: 0.077 | U188: 7.69 | V188: 0.077 | W188: 0 | X188: 0.000 | Y188: 0 | Z188: 0.000 | AA188: 38637421 | AB188: 0.03 | AC188: CA | AD188: 51.0202 | AE188: Professional degree (doctoral level) | AF188: 18, 19
A189: Audiologists | B189: 2014 | C189: 8 | D189: Colorado | E189: 6 | F189: 0 | G189: 6 | H189: 4 | I189: 0 | J189: 1 | K189: 1 | L189: 0 | M189: 0.00 | N189: 0.000 | O189: 100 | P189: 1.000 | Q189: 66.67 | R189: 0.667 | S189: 0 | T189: 0.000 | U189: 16.67 | V189: 0.167 | W189: 16.67 | X189: 0.167 | Y189: 0 | Z189: 0.000 | AA189: 5342212 | AB189: 0.11 | AC189: CO | AD189: 51.0202 | AE189: Professional degree (doctoral level) | AF189: 18, 19
A190: Audiologists | B190: 2014 | C190: 9 | D190: Connecticut | E190: 6 | F190: 0 | G190: 6 | H190: 6 | I190: 0 | J190: 0 | K190: 0 | L190: 0 | M190: 0.00 | N190: 0.000 | O190: 100 | P190: 1.000 | Q190: 100 | R190: 1.000 | S190: 0 | T190: 0.000 | U190: 0 | V190: 0.000 | W190: 0 | X190: 0.000 | Y190: 0 | Z190: 0.000 | AA190: 3614584 | AB190: 0.17 | AC190: CT | AD190: 51.0202 | AE190: Professional degree (doctoral level) | AF190: 18, 19
A191: Audiologists | B191: 2014 | C191: 11 | D191: District of Columbia | E191: 13 | F191: 1 | G191: 12 | H191: 9 | I191: 1 | J191: 1 | K191: 1 | L191: 1 | M191: 7.69 | N191: 0.077 | O191: 92.31 | P191: 0.923 | Q191: 69.23 | R191: 0.692 | S191: 7.69 | T191: 0.077 | U191: 7.69 | V191: 0.077 | W191: 7.69 | X191: 0.077 | Y191: 7.69 | Z191: 0.077 | AA191: 653986 | AB191: 1.99 | AC191: DC | AD191: 51.0202 | AE191: Professional degree (doctoral level) | AF191: 18, 19
A192: Audiologists | B192: 2014 | C192: 12 | D192: Florida | E192: 67 | F192: 11 | G192: 56 | H192: 37 | I192: 1 | J192: 4 | K192: 4 | L192: 21 | M192: 16.42 | N192: 0.164 | O192: 83.58 | P192: 0.836 | Q192: 55.22 | R192: 0.552 | S192: 1.49 | T192: 0.015 | U192: 5.97 | V192: 0.060 | W192: 5.97 | X192: 0.060 | Y192: 31.34 | Z192: 0.313 | AA192: 19790139 | AB192: 0.34 | AC192: FL | AD192: 51.0202 | AE192: Professional degree (doctoral level) | AF192: 18, 19
A193: Audiologists | B193: 2014 | C193: 16 | D193: Idaho | E193: 3 | F193: 1 | G193: 2 | H193: 3 | I193: 0 | J193: 0 | K193: 0 | L193: 0 | M193: 33.33 | N193: 0.333 | O193: 66.67 | P193: 0.667 | Q193: 100 | R193: 1.000 | S193: 0 | T193: 0.000 | U193: 0 | V193: 0.000 | W193: 0 | X193: 0.000 | Y193: 0 | Z193: 0.000 | AA193: 1641124 | AB193: 0.18 | AC193: ID | AD193: 51.0202 | AE193: Professional degree (doctoral level) | AF193: 18, 19
A194: Audiologists | B194: 2014 | C194: 17 | D194: Illinois | E194: 19 | F194: 2 | G194: 17 | H194: 17 | I194: 0 | J194: 2 | K194: 0 | L194: 0 | M194: 10.53 | N194: 0.105 | O194: 89.47 | P194: 0.895 | Q194: 89.47 | R194: 0.895 | S194: 0 | T194: 0.000 | U194: 10.53 | V194: 0.105 | W194: 0 | X194: 0.000 | Y194: 0 | Z194: 0.000 | AA194: 12968905 | AB194: 0.15 | AC194: IL | AD194: 51.0202 | AE194: Professional degree (doctoral level) | AF194: 18, 19
A195: Audiologists | B195: 2014 | C195: 20 | D195: Kansas | E195: 4 | F195: 0 | G195: 4 | H195: 2 | I195: 0 | J195: 0 | K195: 0 | L195: 2 | M195: 0.00 | N195: =M195/100 -> 0.000 | O195: 100 | P195: =O195/100 -> 1.000 | Q195: 50 | R195: =Q195/100 -> 0.500 | S195: 0 | T195: =S195/100 -> 0.000 | U195: 0 | V195: =U195/100 -> 0.000 | W195: 0 | X195: =W195/100 -> 0.000 | Y195: 50 | Z195: =Y195/100 -> 0.500 | AA195: 2911564 | AB195: 0.14 | AC195: KS | AD195: 51.0202 | AE195: Professional degree (doctoral level) | AF195: 18, 19
A196: Audiologists | B196: 2014 | C196: 22 | D196: Louisiana | E196: 15 | F196: 3 | G196: 12 | H196: 12 | I196: 0 | J196: 1 | K196: 2 | L196: 0 | M196: 20.00 | N196: 0.200 | O196: 80 | P196: 0.800 | Q196: 80 | R196: 0.800 | S196: 0 | T196: 0.000 | U196: 6.67 | V196: 0.067 | W196: 13.33 | X196: 0.133 | Y196: 0 | Z196: 0.000 | AA196: 4648813 | AB196: 0.32 | AC196: LA | AD196: 51.0202 | AE196: Professional degree (doctoral level) | AF196: 18, 19
A197: Audiologists | B197: 2014 | C197: 24 | D197: Maryland | E197: 6 | F197: 1 | G197: 5 | H197: 5 | I197: 1 | J197: 0 | K197: 0 | L197: 0 | M197: 16.67 | N197: 0.167 | O197: 83.33 | P197: 0.833 | Q197: 83.33 | R197: 0.833 | S197: 16.67 | T197: 0.167 | U197: 0 | V197: 0.000 | W197: 0 | X197: 0.000 | Y197: 0 | Z197: 0.000 | AA197: 6010059 | AB197: 0.1 | AC197: MD | AD197: 51.0202 | AE197: Professional degree (doctoral level) | AF197: 18, 19
A198: Audiologists | B198: 2014 | C198: 25 | D198: Massachusetts | E198: 9 | F198: 1 | G198: 8 | H198: 4 | I198: 0 | J198: 1 | K198: 0 | L198: 4 | M198: 11.11 | N198: 0.111 | O198: 88.89 | P198: 0.889 | Q198: 44.44 | R198: 0.444 | S198: 0 | T198: 0.000 | U198: 11.11 | V198: 0.111 | W198: 0 | X198: 0.000 | Y198: 44.44 | Z198: 0.444 | AA198: 6820869 | AB198: 0.13 | AC198: MA | AD198: 51.0202 | AE198: Professional degree (doctoral level) | AF198: 18, 19
A199: Audiologists | B199: 2014 | C199: 26 | D199: Michigan | E199: 18 | F199: 6 | G199: 12 | H199: 13 | I199: 0 | J199: 1 | K199: 0 | L199: 4 | M199: 33.33 | N199: 0.333 | O199: 66.67 | P199: 0.667 | Q199: 72.22 | R199: 0.722 | S199: 0 | T199: 0.000 | U199: 5.56 | V199: 0.056 | W199: 0 | X199: 0.000 | Y199: 22.22 | Z199: 0.222 | AA199: 9974914 | AB199: 0.18 | AC199: MI | AD199: 51.0202 | AE199: Professional degree (doctoral level) | AF199: 18, 19
A200: Audiologists | B200: 2014 | C200: 27 | D200: Minnesota | E200: 5 | F200: 2 | G200: 3 | H200: 4 | I200: 0 | J200: 0 | K200: 0 | L200: 1 | M200: 40.00 | N200: 0.400 | O200: 60 | P200: 0.600 | Q200: 80 | R200: 0.800 | S200: 0 | T200: 0.000 | U200: 0 | V200: 0.000 | W200: 0 | X200: 0.000 | Y200: 20 | Z200: 0.200 | AA200: 5474193 | AB200: 0.09 | AC200: MN | AD200: 51.0202 | AE200: Professional degree (doctoral level) | AF200: 18, 19
... 2050 more rows
